Workbook

Sheet Project Info
AA1: 2017
B2: U.S. Department of Transportation Federal Transit Administration
B4: Hazard Mitigation Cost Effectiveness Tool
B5: 3/10/2017 – version 2.2
B7: Disclaimer: | K7: Tool Information
B9: The results produced by this tool are not conclusive evidence that a project proposal is or is not cost-effective. The analysis conducted is dependent upon the quality of the information input into the tool. It is intended for use as a planning tool only. | K9: Project and related information may be inputted only into the white cells on the tabs of this tool . All other cells are protected in order to prevent accidental erasure or overwriting. Attempts to modify a protected cell will display an error. Cells marked with a red asterisk (*) represent required inputs.
B12: Description:
K13: Hover your cursor over cells with red triangles in the top-right corner to show guidance notes for that cell. Guidance notes provide additional information about values that should be entered into cells.
B14: Many transit agencies are considering including resilience elements in capital improvement projects during the planning and design phases. This tool may be used for benefit-cost analysis (BCA) of resilience projects being considered for funding as part of a transit agency's asset management program to enable them to make informed decisions about implementing resilience projects.
K15: Click the "Save As New Project" button to start a new project file. You will be prompted to enter a file name.
B17: Resilience projects are those natural hazard mitigation projects designed and built to address vulnerabilities to a public transportation facility or system due to future occurrence of emergencies or major disasters that are likely to occur in the geographic area in which the public transportation system is located; or projected changes in development patterns, demographics, or extreme weather or other climate patterns. Cost-effectiveness evaluations for proposed projects that include a benefit-cost ratio (BCR) can provide important information to decision-makers regarding the project's ability to reduce an asset’s and the public transportation system’s vulnerabilities to future disasters in a cost-effective way. In general, a BCR of one or greater indicates a project is cost-effective. However, additional considerations may result in some projects with a BCR of less than one being considered cost-effective.
K20: Click the "Save Current Project" button to save the current project file.
K22: Click the "Print This Tab" button to print the current tab. You will be prompted to choose a printer.
B23: The tool provides a framework for transit agencies to input quantitative information about a project and its cost-effectiveness. Quantitative information to be input into the tool includes the estimated damages and losses from specifically identified hazards (i.e., recorded historical or expected theoretical events) and the reduction in the anticipated damages and losses after such an event as a result of implementing the proposed project.
K25: Click the "Print All" button to print all the sheets. You will be prompted to choose a printer.
B27: Instructions:
B29: Step 1: Fill out the Project Information section on this tab.
B30: Step 2: Add expected or historic damage information on the next tab.
B31: Step 3: View your BCA results in the Analysis Results tab.
B32: Note: For each damage event in the ‘Damage Info’ tab, fill in all cells requiring a number.
B33: Note: For all sheets, cells marked with a red asterisk (*) represent required inputs.
B35: Project Information
B37: Section I - Agency Information
B38: Agency*:
B39: Address:
B40: Address Line 2:
B41: City: | F41: State: | H41: Zip:
B42: Section II - Project Information
B43: Project Name*:
B44: Analysis Year*: | F44: Analysis Date*:
B45: Analyst*: | F45: Analyst Phone:
B46: Transit Mode(s) Protected by Project*:
B47: Primary Hazard Protected by Project*: | F47: If Primary Hazard is "Other," please specify:
B48: Secondary Hazard(s) Protected by Project: | F48: If Secondary Hazard is "Other," please specify:
B49: Brief Project Description*:
B50: Select Basis to Evaluate Post-Resilence Damage*:
B51: Proposed Project Effectiveness (Years)*: | D51: Source/Documentation of Project Effectiveness:
B52: Section III - Cost Information
B53: Total Project Initial Cost*:
B54: Source/Documentation of Total Cost Estimate:
B55: Project Useful Life (Years)*:
B56: Remaining Useful Life of Assets to be Protected (Years):
B57: Annual Project Operation & Maintenance (O&M) Cost*:
B58: Source/Documentation of Annual O&M Cost:
B59: Discount Rate (%): | C59: 7
B60: Present Value Coefficient: | C60: =IF(AND(ISNUMBER(Project_Useful_Life),ISNUMBER(Discount_Rate)),PV(Discount_Rate/100,Project_Useful_Life,-1),"") -> 
B61: Present Value of Annual O&M Costs: | C61: =IF(AND(ISNUMBER(Present_Value_Coefficient),ISNUMBER(Annual_O_M_Cost)),Present_Value_Coefficient*Annual_O_M_Cost,"") -> 
B62: Total Project Cost including O&M: | C62: =IF(ISNUMBER(Total_Project_Initial_Cost+PV_Annual_O_M_Costs),Total_Project_Initial_Cost+PV_Annual_O_M_Costs,"") -> 
B63: Section IV - Cost Associated with Interruption in Transit Services during Project Construction/Implementation
B64: Cost of Loss of Services for Transit Passengers ($/Passenger/Hour)*: | F64: Default | H64: =VLOOKUP(F64,CostLoss, 2, FALSE) -> 17.08
B65: Current Federal Mileage Rate ($/Mile)*: | F65: 0.535
B66: Will there be a losses or delays in transit service during project construction?* | F66: No
B67: Duration of Loss or Reduction of Services (Days)*:
B68: Impacts Due to Delay and/or Extra Travel Time for Transit Mode Under Project Construction
B69: Delay or Extra Travel Time (Hours):
B70: Average Daily Number of Passengers:
B71: Loss of Transit Services Cost: | D71: =IF(AND(ISNUMBER(F67),ISNUMBER(D69),ISNUMBER(D70)),F67*D69*D70*$H$64," ") -> 
B72: Impacts Due to Delay and/or Extra Travel Time and Miles for Alternate Transit Modes
B73: Additional Time per One-way Trip (Hours):
B74: Additional Travel Miles:
B75: Alternate Transit Mode (Rail, Ferry, Buses) | F75: Other Alternate Transit Mode (Vehicles)
B76: Number of One-way Traffic Trips per Day (Rail/Ferry/Buses): | F76: Number of One-way Traffic Trips per Day (Vehicles):
B77: Average Number of Passengers per Trip: | F77: Average Number of Passengers per Vehicle: | H77: 1.67
B78: Loss of Services Cost (Rail/Ferry/Buses): | D78: =IF(AND(ISNUMBER(D76),ISNUMBER(D77)),F67*$H$64*D73*D76*D77+F67*$F$65*D74*D76," ") ->  | F78: Loss of Services Cost (Vehicles): | H78: =IF(AND(ISNUMBER(D73),ISNUMBER(D74),ISNUMBER(H76)),F67*D73*H76*($H$64*H77)+D74*H76*$F$65," ") -> 
B79: Totals
B80: Total Cost due to Interruption of Services: | D80: =IF(F66="Yes",IF(OR(ISNUMBER(D71),ISNUMBER(H78),ISNUMBER(D78)),SUM(D71,H78,D78),""),0) -> 0
B81: Total BCA Project Costs: Total Project Cost including O&M and Interruption of Services Loss: | G81: =IF(OR(ISNUMBER(Total_Project_Cost_including_O_M),ISNUMBER(Interruption_of_Services_Cost)),SUM(Total_Project_Cost_including_O_M,Interruption_of_Services_Cost),"") -> 0

Sheet Damage Info
B2: Hazard Mitigation Cost Effectiveness Tool
B4: BCR Summary | L4: Tools
B5: Proposed Project Effectiveness (Years): | D5: ='Project Info'!C51 -> 0
B6: Total Project Benefits: | D6: =IF(ISNUMBER(PV_Annual_Damages_Before_Mitigation-PV_Annual_Damages_After_Mitigation),PV_Annual_Damages_Before_Mitigation-PV_Annual_Damages_After_Mitigation,"") -> 
B7: Total BCA Project Costs: | D7: =IF(ISNUMBER(Total_Project_Cost),Total_Project_Cost,"") -> 0
B8: Benefit-Cost Ratio (BCR): | D8: =BCR -> 
B11: Damage Information
B12: Section I - General Information
B13: Agency: | D13: =IF(ISBLANK('Project Info'!$C$38),"",'Project Info'!$C$38) -> 
B14: Project Name: | D14: =IF(ISBLANK('Project Info'!$C$43),"",'Project Info'!$C$43) -> 
B15: Analysis Year: | D15: =IF(ISNUMBER(Analysis_Year),Analysis_Year,"") -> 
B16: Select Damage Analysis Type*: | D16: Select Damage Type
B18: Section II - Expected Damages
B19: Expected Damages Questionnaire
B20: How many documented expected damage events do you have? | H20: For how many of these expected damage events do you know the Recurrence Intervals (RIs)?
B21: Errors: (must be corrected to proceed with analysis) | D21: =IF($M20<1,"Insufficient number of expected damage events of known RIs to conduct a valid analysis!"," ") -> Insufficient number of expected damage events of known RIs to conduct a valid analysis!
B23: Warnings: (must be addressed to conduct a valid analysis) | D23: =IF(AND($G20=1,$M20=1),"With only one damage event of known RI, the analysis will be of limited accuracy and is not recommended!"," ") -> 
B26: Conclusions: (provide directions on analysis approach based on completed questionnaire) | D26: =IF(AND($G20>=1,$M20=1),"A valid analysis may be conducted using one damage event of known RI, but other expected damage events should be added if possible to improve the accuracy of the analysis.", " ") -> 
D27: =IF(AND($G20>=2,$M20>=2),"A valid analysis may be conducted using two or more damage events of known RIs.", " ") -> 
D28: =IF(AND($M20<1),"A valid analysis cannot be conducted without at least one or more damage events of known RIs.", " ") -> A valid analysis cannot be conducted without at least one or more damage events of known RIs.
B29: Source/Documentation of Expected Damages:
B30: Expected Damages Part A
C31: Physical Damages Costs | E31: Response and Recovery Costs | F31: Other Damage/Loss (describe below)
C32: (includes permanent repairs to damaged fixed structures and rolling stock) | E32: (includes costs of emergency protective measures and temporary repairs or measures that can be avoided by the proposed project)
B33: Recurrence Interval (Years) | C33: Physical Damage Costs for Fixed Structures ($) | D33: Physical Damage Costs for Rolling Stock ($) | E33: Response and Recovery Costs ($) | F33: Other Damage Costs ($) | G33: Total Part A Damages
G34: =IF(AND(ISNUMBER($C34),ISNUMBER($D34),ISNUMBER($E34),ISNUMBER($F34)),SUM($C34,$D34,$E34,$F34),"") -> 
G35: =IF(AND(ISNUMBER($C35),ISNUMBER($D35),ISNUMBER($E35),ISNUMBER($F35)),SUM($C35,$D35,$E35,$F35),"") -> 
G36: =IF(AND(ISNUMBER($C36),ISNUMBER($D36),ISNUMBER($E36),ISNUMBER($F36)),SUM($C36,$D36,$E36,$F36),"") -> 
G37: =IF(AND(ISNUMBER($C37),ISNUMBER($D37),ISNUMBER($E37),ISNUMBER($F37)),SUM($C37,$D37,$E37,$F37),"") -> 
G38: =IF(AND(ISNUMBER($C38),ISNUMBER($D38),ISNUMBER($E38),ISNUMBER($F38)),SUM($C38,$D38,$E38,$F38),"") -> 
F39: =IF(COUNTBLANK(B39:E39)=0,(VLOOKUP(Analysis_Year,'Freq Calculations'!$E$54:$F$162,2,FALSE)/VLOOKUP(E39,'Freq Calculations'!$E$54:$F$162,2,FALSE))*(C39+D39),"") ->  | I39: =IF(AND(ISNUMBER(G39), ISNUMBER(H39)), (VLOOKUP(Analysis_Year,'Freq Calculations'!$E$54:$F$162,2,FALSE)/VLOOKUP(H39,'Freq Calculations'!$E$54:$F$162,2,FALSE))*G39,"") ->  | L39: =IF(AND(ISNUMBER(J39), ISNUMBER(K39)), (VLOOKUP(Analysis_Year,'Freq Calculations'!$E$54:$F$162,2,FALSE)/VLOOKUP(K39,'Freq Calculations'!$E$54:$F$162,2,FALSE))*J39,"") ->  | M39: =IF(AND(ISNUMBER($F39),ISNUMBER($I39),ISNUMBER($L39)),SUM($F39,$I39,$L39),"") -> 
F40: =IF(COUNTBLANK(B40:E40)=0,(VLOOKUP(Analysis_Year,'Freq Calculations'!$E$54:$F$162,2,FALSE)/VLOOKUP(E40,'Freq Calculations'!$E$54:$F$162,2,FALSE))*(C40+D40),"") ->  | I40: =IF(AND(ISNUMBER(G40), ISNUMBER(H40)), (VLOOKUP(Analysis_Year,'Freq Calculations'!$E$54:$F$162,2,FALSE)/VLOOKUP(H40,'Freq Calculations'!$E$54:$F$162,2,FALSE))*G40,"") ->  | L40: =IF(AND(ISNUMBER(J40), ISNUMBER(K40)), (VLOOKUP(Analysis_Year,'Freq Calculations'!$E$54:$F$162,2,FALSE)/VLOOKUP(K40,'Freq Calculations'!$E$54:$F$162,2,FALSE))*J40,"") -> 
F41: =IF(COUNTBLANK(B41:E41)=0,(VLOOKUP(Analysis_Year,'Freq Calculations'!$E$54:$F$162,2,FALSE)/VLOOKUP(E41,'Freq Calculations'!$E$54:$F$162,2,FALSE))*(C41+D41),"") ->  | I41: =IF(AND(ISNUMBER(G41), ISNUMBER(H41)), (VLOOKUP(Analysis_Year,'Freq Calculations'!$E$54:$F$162,2,FALSE)/VLOOKUP(H41,'Freq Calculations'!$E$54:$F$162,2,FALSE))*G41,"") ->  | L41: =IF(AND(ISNUMBER(J41), ISNUMBER(K41)), (VLOOKUP(Analysis_Year,'Freq Calculations'!$E$54:$F$162,2,FALSE)/VLOOKUP(K41,'Freq Calculations'!$E$54:$F$162,2,FALSE))*J41,"") -> 
F42: =IF(COUNTBLANK(B42:E42)=0,(VLOOKUP(Analysis_Year,'Freq Calculations'!$E$54:$F$162,2,FALSE)/VLOOKUP(E42,'Freq Calculations'!$E$54:$F$162,2,FALSE))*(C42+D42),"") ->  | I42: =IF(AND(ISNUMBER(G42), ISNUMBER(H42)), (VLOOKUP(Analysis_Year,'Freq Calculations'!$E$54:$F$162,2,FALSE)/VLOOKUP(H42,'Freq Calculations'!$E$54:$F$162,2,FALSE))*G42,"") ->  | L42: =IF(AND(ISNUMBER(J42), ISNUMBER(K42)), (VLOOKUP(Analysis_Year,'Freq Calculations'!$E$54:$F$162,2,FALSE)/VLOOKUP(K42,'Freq Calculations'!$E$54:$F$162,2,FALSE))*J42,"") -> 
F43: =IF(COUNTBLANK(B43:E43)=0,(VLOOKUP(Analysis_Year,'Freq Calculations'!$E$54:$F$162,2,FALSE)/VLOOKUP(E43,'Freq Calculations'!$E$54:$F$162,2,FALSE))*(C43+D43),"") ->  | I43: =IF(AND(ISNUMBER(G43), ISNUMBER(H43)), (VLOOKUP(Analysis_Year,'Freq Calculations'!$E$54:$F$162,2,FALSE)/VLOOKUP(H43,'Freq Calculations'!$E$54:$F$162,2,FALSE))*G43,"") ->  | L43: =IF(AND(ISNUMBER(J43), ISNUMBER(K43)), (VLOOKUP(Analysis_Year,'Freq Calculations'!$E$54:$F$162,2,FALSE)/VLOOKUP(K43,'Freq Calculations'!$E$54:$F$162,2,FALSE))*J43,"") -> 
F44: =IF(COUNTBLANK(B44:E44)=0,(VLOOKUP(Analysis_Year,'Freq Calculations'!$E$54:$F$162,2,FALSE)/VLOOKUP(E44,'Freq Calculations'!$E$54:$F$162,2,FALSE))*(C44+D44),"") ->  | I44: =IF(AND(ISNUMBER(G44), ISNUMBER(H44)), (VLOOKUP(Analysis_Year,'Freq Calculations'!$E$54:$F$162,2,FALSE)/VLOOKUP(H44,'Freq Calculations'!$E$54:$F$162,2,FALSE))*G44,"") ->  | L44: =IF(AND(ISNUMBER(J44), ISNUMBER(K44)), (VLOOKUP(Analysis_Year,'Freq Calculations'!$E$54:$F$162,2,FALSE)/VLOOKUP(K44,'Freq Calculations'!$E$54:$F$162,2,FALSE))*J44,"") -> 
F45: =IF(COUNTBLANK(B45:E45)=0,(VLOOKUP(Analysis_Year,'Freq Calculations'!$E$54:$F$162,2,FALSE)/VLOOKUP(E45,'Freq Calculations'!$E$54:$F$162,2,FALSE))*(C45+D45),"") ->  | I45: =IF(AND(ISNUMBER(G45), ISNUMBER(H45)), (VLOOKUP(Analysis_Year,'Freq Calculations'!$E$54:$F$162,2,FALSE)/VLOOKUP(H45,'Freq Calculations'!$E$54:$F$162,2,FALSE))*G45,"") ->  | L45: =IF(AND(ISNUMBER(J45), ISNUMBER(K45)), (VLOOKUP(Analysis_Year,'Freq Calculations'!$E$54:$F$162,2,FALSE)/VLOOKUP(K45,'Freq Calculations'!$E$54:$F$162,2,FALSE))*J45,"") -> 
B46: Expected Damages Part B
B47: Cost of Loss of Transit Services for Passengers ($/Passenger/Hour): | D47: =+Service_Loss_Coeff -> 17.08
B48: Current Federal Mileage Rate ($/Mile): | D48: =Federal_Mileage_Coeff -> 0.535
C49: Damages Due to Delay and/or Extra Travel Time for Passengers in Rail or Ferry Services | G49: Damages Due to Delay and/or Extra Travel Time and Miles for Passengers in Buses
B50: Recurrence Interval (Years) | C50: Delay or Extra Travel Time (Hours) | D50: Average Daily Number of Passengers | E50: Duration of Loss or Reduction of Rail or Ferry Services (Days) | F50: Loss of Services Damages (Rail or Ferry) | G50: Additional Time per One-way Trip (Hours) | H50: Additional Travel Miles | I50: Duration of Loss or Reduction of Services (Days) | J50: Number of One-way Traffic Trips Per Day (Buses) | K50: Average Number of Passengers per Bus | L50: Loss of Services Damages (Buses) | M50: Total Part B Damages
B51: =IF(ISNUMBER(B34),B34,"") ->  | F51: =IF(COUNTBLANK(B51:E51)=0,$D$47*C51*D51*E51,"") ->  | L51: =IF(COUNTBLANK(G51:K51)=0,$D$47*G51*J51*K51*I51+$D$48*H51*J51*I51," ") ->  | M51: =IF(AND(ISNUMBER($F51),ISNUMBER($L51)),SUM($F51,$L51),"") -> 
B52: =IF(ISNUMBER(B35),B35,"") ->  | F52: =IF(COUNTBLANK(B52:E52)=0,$D$47*C52*D52*E52,"") ->  | L52: =IF(COUNTBLANK(G52:K52)=0,$D$47*G52*J52*K52*I52+$D$48*H52*J52*I52," ") ->  | M52: =IF(AND(ISNUMBER($F52),ISNUMBER($L52)),SUM($F52,$L52),"") -> 
B63: Overall Expected Damages to be Used in BCR Calculation
B64: Recurrence Interval (Years) | C64: Total Expected Damages | D64: Error Check: | E64: =IF(COUNT(C65:C76)<2,"",IF(AND(T65:T76,U65:U76),"","Total damages need to increase with increasing RI!")) ->  | F64: =IF(COUNT(E64:E75)<2,"",IF(AND(V64:V75,W64:W75),"","Total damages need to increase with increasing RI!")) -> 
B65: =IF(ISNUMBER(B34),B34,"") ->  | C65: =IF(OR(ISNUMBER(G34),ISNUMBER(M51)),SUM(G34,M51),"") ->  | R65: =IF(ISNUMBER(B65),RANK(B65,$B$65:$B$76),"") ->  | S65: =IF(ISNUMBER(C65),RANK(C65,$C$65:$C$76),"") ->  | T65: =IF(ISNUMBER(R66),R65>R66,"") ->  | U65: =IF(C65=0,TRUE,IF(ISNUMBER(S66),S65>S66,"")) -> 
C66: =IF(OR(ISNUMBER(G35),ISNUMBER(M52)),SUM(G35,M52),"") -> 
C67: =IF(OR(ISNUMBER(G36),ISNUMBER(M53)),SUM(G36,M53),"") -> 
C68: =IF(OR(ISNUMBER(G37),ISNUMBER(M54)),SUM(G37,M54),"") -> 
C69: =IF(OR(ISNUMBER(G38),ISNUMBER(M55)),SUM(G38,M55),"") -> 
C70: =IF(OR(ISNUMBER(M39),ISNUMBER(M56)),SUM(M39,M56),"") -> 
T76: =IF(ISNUMBER(R78),R76>R78,"") ->  | U76: =IF(C76=0,TRUE,IF(ISNUMBER(T78),S76>T78,"")) -> 
B78: Section II - Historic Damages
B79: Analysis Year : | E79: =IF(ISNUMBER(Analysis_Year),Analysis_Year,"") -> 
B80: Year Built (4-digit Year)*:
B81: Analysis Duration (Years): | E81: =IF(AND(ISNUMBER(Analysis_Year),ISNUMBER(Year_Built)),MAX(10,Analysis_Year-MAX(Year_Built,1908)+1),"") -> 
B82: User Input Analysis Duration (Years): | F82: Documentation/Justification:
B83: Selected Analysis Duration (Years): | E83: =IF(ISNUMBER(User_Input_Analysis_Duration),MIN(Analysis_Duration,User_Input_Analysis_Duration),Analysis_Duration) -> 
B84: Historic Damages Questionnaire
B85: How many documented historic damage events do you have?* | H85: For how many of these historic damage events do you know the Recurrence Intervals (RIs)?*
B86: Errors: (must be corrected to proceed with analysis) | E86: =IF(Values!$U4="None"," ",Values!$U4) -> Insufficient number of historic damage events of known RIs to conduct a valid analysis!
B88: Warnings: (must be addressed to conduct a valid analysis) | E88: =IF(Values!$U5="None"," ",Values!$U5) -> 
B90: Conclusions: (provide directions on analysis approach based on completed questionnaire) | E90: =IF(Values!$U6="None"," ",Values!$U6) -> A minimum of one historic event of known RI or three historic events of unknown RI are needed to conduct a valid analysis.
B92: Source/Documentation of Historic Damages:
B93: Historic Damages Part A (Unknown Recurrence Interval)
C94: Physical Damages Costs | E94: Response and Recovery Costs | F94: Other Damage/Loss (describe below)
C95: (includes permanent repairs to damaged fixed structures and rolling stock) | E95: (includes costs of emergency protective measures and temporary repairs or measures that can be avoided by the proposed project)
B97: Event Year* (4-digit Year) | C97: Physical Damage Costs for Fixed Structures* ($) | D97: Physical Damage Costs for Rolling Stock* ($) | E97: Response and Recovery Costs* ($) | F97: Other Damage or Loss ($) | G97: Sum of Part A Damages ($) | H97: Are Damages in Current Dollars?* | I97: Total Part A Damages (Inflated to Analysis Year) ($)
G98: =IF(AND(ISNUMBER($C98),ISNUMBER($D98),ISNUMBER($E98),ISNUMBER($F98)),SUM($C98,$D98,$E98,$F98),"") ->  | H98: FALSE | I98: =IF(ISNUMBER($G98), IF($H98,$G98, (VLOOKUP(Analysis_Year,'Freq Calculations'!$E$54:$F$164,2,FALSE)/VLOOKUP($B98,'Freq Calculations'!$E$54:$F$164,2,FALSE))*$G98),"") -> 
G99: =IF(AND(ISNUMBER($C99),ISNUMBER($D99),ISNUMBER($E99),ISNUMBER($F99)),SUM($C99,$D99,$E99,$F99),"") ->  | H99: FALSE | I99: =IF(ISNUMBER($G99), IF($H99,$G99, (VLOOKUP(Analysis_Year,'Freq Calculations'!$E$54:$F$164,2,FALSE)/VLOOKUP($B99,'Freq Calculations'!$E$54:$F$164,2,FALSE))*$G99),"") -> 
G100: =IF(AND(ISNUMBER($C100),ISNUMBER($D100),ISNUMBER($E100),ISNUMBER($F100)),SUM($C100,$D100,$E100,$F100),"") ->  | H100: FALSE | I100: =IF(ISNUMBER($G100), IF($H100,$G100, (VLOOKUP(Analysis_Year,'Freq Calculations'!$E$54:$F$164,2,FALSE)/VLOOKUP($B100,'Freq Calculations'!$E$54:$F$164,2,FALSE))*$G100),"") -> 
G101: =IF(AND(ISNUMBER($C101),ISNUMBER($D101),ISNUMBER($E101),ISNUMBER($F101)),SUM($C101,$D101,$E101,$F101),"") ->  | H101: FALSE | I101: =IF(ISNUMBER($G101), IF($H101,$G101, (VLOOKUP(Analysis_Year,'Freq Calculations'!$E$54:$F$164,2,FALSE)/VLOOKUP($B101,'Freq Calculations'!$E$54:$F$164,2,FALSE))*$G101),"") -> 
G102: =IF(AND(ISNUMBER($C102),ISNUMBER($D102),ISNUMBER($E102),ISNUMBER($F102)),SUM($C102,$D102,$E102,$F102),"") ->  | H102: FALSE | I102: =IF(ISNUMBER($G102), IF($H102,$G102, (VLOOKUP(Analysis_Year,'Freq Calculations'!$E$54:$F$164,2,FALSE)/VLOOKUP($B102,'Freq Calculations'!$E$54:$F$164,2,FALSE))*$G102),"") -> 
F103: =IF(COUNTBLANK(B103:E103)=0,(VLOOKUP(Analysis_Year,'Freq Calculations'!$E$54:$F$162,2,FALSE)/VLOOKUP(E103,'Freq Calculations'!$E$54:$F$162,2,FALSE))*(C103+D103),"") ->  | I103: =IF(AND(ISNUMBER(G103), ISNUMBER(H103)), (VLOOKUP(Analysis_Year,'Freq Calculations'!$E$54:$F$162,2,FALSE)/VLOOKUP(H103,'Freq Calculations'!$E$54:$F$162,2,FALSE))*G103,"") ->  | L103: =IF(AND(ISNUMBER(J103), ISNUMBER(K103)), (VLOOKUP(Analysis_Year,'Freq Calculations'!$E$54:$F$162,2,FALSE)/VLOOKUP(K103,'Freq Calculations'!$E$54:$F$162,2,FALSE))*J103,"") ->  | M103: =IF(AND(ISNUMBER($F103),ISNUMBER($I103),ISNUMBER($L103)),SUM($F103,$I103,$L103),"") -> 
F104: =IF(COUNTBLANK(B104:E104)=0,(VLOOKUP(Analysis_Year,'Freq Calculations'!$E$54:$F$162,2,FALSE)/VLOOKUP(E104,'Freq Calculations'!$E$54:$F$162,2,FALSE))*(C104+D104),"") ->  | I104: =IF(AND(ISNUMBER(G104), ISNUMBER(H104)), (VLOOKUP(Analysis_Year,'Freq Calculations'!$E$54:$F$162,2,FALSE)/VLOOKUP(H104,'Freq Calculations'!$E$54:$F$162,2,FALSE))*G104,"") ->  | L104: =IF(AND(ISNUMBER(J104), ISNUMBER(K104)), (VLOOKUP(Analysis_Year,'Freq Calculations'!$E$54:$F$162,2,FALSE)/VLOOKUP(K104,'Freq Calculations'!$E$54:$F$162,2,FALSE))*J104,"") -> 
F105: =IF(COUNTBLANK(B105:E105)=0,(VLOOKUP(Analysis_Year,'Freq Calculations'!$E$54:$F$162,2,FALSE)/VLOOKUP(E105,'Freq Calculations'!$E$54:$F$162,2,FALSE))*(C105+D105),"") ->  | I105: =IF(AND(ISNUMBER(G105), ISNUMBER(H105)), (VLOOKUP(Analysis_Year,'Freq Calculations'!$E$54:$F$162,2,FALSE)/VLOOKUP(H105,'Freq Calculations'!$E$54:$F$162,2,FALSE))*G105,"") ->  | L105: =IF(AND(ISNUMBER(J105), ISNUMBER(K105)), (VLOOKUP(Analysis_Year,'Freq Calculations'!$E$54:$F$162,2,FALSE)/VLOOKUP(K105,'Freq Calculations'!$E$54:$F$162,2,FALSE))*J105,"") -> 
F106: =IF(COUNTBLANK(B106:E106)=0,(VLOOKUP(Analysis_Year,'Freq Calculations'!$E$54:$F$162,2,FALSE)/VLOOKUP(E106,'Freq Calculations'!$E$54:$F$162,2,FALSE))*(C106+D106),"") ->  | I106: =IF(AND(ISNUMBER(G106), ISNUMBER(H106)), (VLOOKUP(Analysis_Year,'Freq Calculations'!$E$54:$F$162,2,FALSE)/VLOOKUP(H106,'Freq Calculations'!$E$54:$F$162,2,FALSE))*G106,"") ->  | L106: =IF(AND(ISNUMBER(J106), ISNUMBER(K106)), (VLOOKUP(Analysis_Year,'Freq Calculations'!$E$54:$F$162,2,FALSE)/VLOOKUP(K106,'Freq Calculations'!$E$54:$F$162,2,FALSE))*J106,"") -> 
F107: =IF(COUNTBLANK(B107:E107)=0,(VLOOKUP(Analysis_Year,'Freq Calculations'!$E$54:$F$162,2,FALSE)/VLOOKUP(E107,'Freq Calculations'!$E$54:$F$162,2,FALSE))*(C107+D107),"") ->  | I107: =IF(AND(ISNUMBER(G107), ISNUMBER(H107)), (VLOOKUP(Analysis_Year,'Freq Calculations'!$E$54:$F$162,2,FALSE)/VLOOKUP(H107,'Freq Calculations'!$E$54:$F$162,2,FALSE))*G107,"") ->  | L107: =IF(AND(ISNUMBER(J107), ISNUMBER(K107)), (VLOOKUP(Analysis_Year,'Freq Calculations'!$E$54:$F$162,2,FALSE)/VLOOKUP(K107,'Freq Calculations'!$E$54:$F$162,2,FALSE))*J107,"") -> 
F108: =IF(COUNTBLANK(B108:E108)=0,(VLOOKUP(Analysis_Year,'Freq Calculations'!$E$54:$F$162,2,FALSE)/VLOOKUP(E108,'Freq Calculations'!$E$54:$F$162,2,FALSE))*(C108+D108),"") ->  | I108: =IF(AND(ISNUMBER(G108), ISNUMBER(H108)), (VLOOKUP(Analysis_Year,'Freq Calculations'!$E$54:$F$162,2,FALSE)/VLOOKUP(H108,'Freq Calculations'!$E$54:$F$162,2,FALSE))*G108,"") ->  | L108: =IF(AND(ISNUMBER(J108), ISNUMBER(K108)), (VLOOKUP(Analysis_Year,'Freq Calculations'!$E$54:$F$162,2,FALSE)/VLOOKUP(K108,'Freq Calculations'!$E$54:$F$162,2,FALSE))*J108,"") -> 
F109: =IF(COUNTBLANK(B109:E109)=0,(VLOOKUP(Analysis_Year,'Freq Calculations'!$E$54:$F$162,2,FALSE)/VLOOKUP(E109,'Freq Calculations'!$E$54:$F$162,2,FALSE))*(C109+D109),"") ->  | I109: =IF(AND(ISNUMBER(G109), ISNUMBER(H109)), (VLOOKUP(Analysis_Year,'Freq Calculations'!$E$54:$F$162,2,FALSE)/VLOOKUP(H109,'Freq Calculations'!$E$54:$F$162,2,FALSE))*G109,"") ->  | L109: =IF(AND(ISNUMBER(J109), ISNUMBER(K109)), (VLOOKUP(Analysis_Year,'Freq Calculations'!$E$54:$F$162,2,FALSE)/VLOOKUP(K109,'Freq Calculations'!$E$54:$F$162,2,FALSE))*J109,"") -> 
B110: Historic Damages Part B (Unknown Recurrence Interval)
B111: Cost of Loss of Transit Services for Passengers ($/Passenger/Hour): | D111: =+Service_Loss_Coeff -> 17.08
B112: Current Federal Mileage Rate ($/Mile): | D112: =+Federal_Mileage_Coeff -> 0.535
C113: Damages Due to Delay and/or Extra Travel Time for Passengers in Rail or Ferry Services | G113: Damages Due to Delay and/or Extra Travel Time and Miles for Passengers in Buses
B114: Event Year (4-digit Year) | C114: Delay or Extra Travel Time (Hours)* | D114: Average Daily Number of Passengers* | E114: Duration of Loss or Reduction of Rail or Ferry Services (Days)* | F114: Loss of Services Damages (Rail or Ferry) | G114: Additional Time per One-way Trip (Hours)* | H114: Additional Travel Miles* | I114: Duration of Loss or Reduction of Services (Days)* | J114: Number of One-way Traffic Trips Per Day (Buses)* | K114: Average Number of Passengers per Bus* | L114: Loss of Services Damages (Buses) | M114: Total Part B Damages
B115: =IF(ISNUMBER(B98),B98,"") ->  | F115: =IF(COUNTBLANK(B115:E115)=0,$D$111*C115*D115*E115,"") ->  | L115: =IF(COUNTBLANK(G115:K115)=0,$D$111*G115*J115*K115*I115+$D$112*H115*J115*I115," ") ->  | M115: =IF(AND(ISNUMBER($F115),ISNUMBER($L115)),SUM($F115,$L115),"") -> 
B116: =IF(ISNUMBER(B99),B99,"") ->  | F116: =IF(COUNTBLANK(B116:E116)=0,$D$111*C116*D116*E116,"") ->  | L116: =IF(COUNTBLANK(G116:K116)=0,$D$111*G116*J116*K116*I116+$D$112*H116*J116*I116," ") ->  | M116: =IF(AND(ISNUMBER($F116),ISNUMBER($L116)),SUM($F116,$L116),"") -> 
B127: Overall Historic Damages to be Used in BCR Calculation (Not Including Catastrophic Events to be Entered in Parts C and D)
B128: Event Year (4-digit Year) | C128: Total Historic Damages | D128: Error Check: | E128: =IF(COUNT(C129:C140)<2,"",'Freq Calculations'!$B$24) -> 
B129: =IF(ISNUMBER(B98),B98,"") ->  | C129: =IF(OR(ISNUMBER(I98),ISNUMBER(M115)),SUM(I98,M115),"") -> 
C130: =IF(OR(ISNUMBER(I99),ISNUMBER(M116)),SUM(I99,M116),"") -> 
C131: =IF(OR(ISNUMBER(I100),ISNUMBER(M117)),SUM(I100,M117),"") -> 
C132: =IF(OR(ISNUMBER(I101),ISNUMBER(M118)),SUM(I101,M118),"") -> 
C133: =IF(OR(ISNUMBER(I102),ISNUMBER(M119)),SUM(I102,M119),"") -> 
C134: =IF(OR(ISNUMBER(M103),ISNUMBER(M120)),SUM(M103,M120),"") -> 
B141: Historic Damages Part C (Known Recurrence Interval)
D142: Physical Damages Costs | F142: Response and Recovery Costs | G142: Other Damage/Loss (describe below)
D143: (includes permanent repairs to damaged fixed structures and rolling stock) | F143: (includes costs of emergency protective measures and temporary repairs or measures that can be avoided by the proposed project)
B145: Damage Year (4-digit Year)* | C145: Known Recurrence Interval (Years)* | D145: Physical Damage Costs for Fixed Structures ($)* | E145: Physical Damage Costs for Rolling Stock ($)* | F145: Response and recovery Costs that can be Avoided by proposed Measures ($)* | G145: Other Damage or Loss ($) | H145: Sum of Part C Damages ($) | I145: Are Damages in Current Dollars?* | J145: Total Part C Damages (Inflated to Analysis Year) ($)
H146: =IF(AND(ISNUMBER($C146),ISNUMBER($D146),ISNUMBER($E146),ISNUMBER($F146),ISNUMBER($G146)),SUM($D146,$E146,$F146,$G146),"") ->  | I146: FALSE | J146: =IF(ISNUMBER($H146), IF($I146,$H146, (VLOOKUP(Analysis_Year,'Freq Calculations'!$E$54:$F$164,2,FALSE)/VLOOKUP($B146,'Freq Calculations'!$E$54:$F$164,2,FALSE))*$H146),"") -> 
H147: =IF(AND(ISNUMBER($C147),ISNUMBER($D147),ISNUMBER($E147),ISNUMBER($F147),ISNUMBER($G147)),SUM($D147,$E147,$F147,$G147),"") ->  | I147: FALSE | J147: =IF(ISNUMBER($H147), IF($I147,$H147, (VLOOKUP(Analysis_Year,'Freq Calculations'!$E$54:$F$164,2,FALSE)/VLOOKUP($B147,'Freq Calculations'!$E$54:$F$164,2,FALSE))*$H147),"") -> 
B148: Historic Damages Part D (Known Recurrence Interval)
B149: Cost of Loss of Transit Services for Passengers ($/Passenger/Hour): | D149: =+Service_Loss_Coeff -> 17.08
B150: Current Federal Mileage Rate ($/Mile): | D150: =+Federal_Mileage_Coeff -> 0.535
D151: Damages Due to Delay and/or Extra Travel Time for Passengers in Rail or Ferry Services | H151: Damages Due to Delay and/or Extra Travel Time and Miles for Passengers in Buses
B152: Damage Year (4-digit Year) | C152: Known Recurrence Interval (Years) | D152: Delay or Extra Travel Time (Hours)* | E152: Average Daily Number of Passengers* | F152: Duration of Loss or Reduction of Rail or Ferry Services (Days)* | G152: Loss of Services Damages (Rail or Ferry) | H152: Additional Time per One-way Trip (Hours)* | I152: Additional Travel Miles* | J152: Duration of Loss or Reduction of Services (Days)* | K152: Number of One-way Traffic Trips Per Day (Buses)* | L152: Average Number of Passengers per Bus* | M152: Loss of Services Damages (Buses)
B153: =IF(ISNUMBER(B146),B146,"") ->  | C153: =IF(ISNUMBER(C146),C146,"") ->  | G153: =IF(AND(ISNUMBER(B146),ISNUMBER(C153),ISNUMBER(D153),ISNUMBER(E153),ISNUMBER(F153)),$D$149*D153*E153*F153," ") ->  | M153: =IF(COUNTBLANK(H153:L153)=0,$D$149*H153*K153*L153*J153+$D$150*I153*K153*J153," ") -> 
B154: =IF(ISNUMBER(B147),B147,"") ->  | C154: =IF(ISNUMBER(C147),C147,"") ->  | G154: =IF(AND(ISNUMBER(B147),ISNUMBER(C154),ISNUMBER(D154),ISNUMBER(E154),ISNUMBER(F154)),$D$149*D154*E154*F154," ") ->  | M154: =IF(COUNTBLANK(H154:L154)=0,$D$149*H154*K154*L154*J154+$D$150*I154*K154*J154," ") -> 
B155: Historic Damages Totals (Known Recurrence Interval)
B156: Damage Year (4-digit Year) | C156: Known Recurrence Interval (Years) | D156: Total Part C Damages | E156: Total Part D Damages | F156: Total Historic Damages (Inflated to Analysis Year) | G156: Error Check: | H156: ='Freq Calculations'!$B$25 -> 
B157: =IF(ISNUMBER(B146),B146,"") ->  | C157: =IF(ISNUMBER(C146),C146,"") ->  | D157: =IF(ISNUMBER(J146),J146,"") ->  | E157: =IF(AND(ISNUMBER($G153),ISNUMBER($M153)),SUM($G153,$M153),"") ->  | F157: =IF(OR(ISNUMBER(D157),ISNUMBER(E157)),SUM(D157,E157),"") -> 
B158: =IF(ISNUMBER(B147),B147,"") ->  | C158: =IF(ISNUMBER(C147),C147,"") ->  | D158: =IF(ISNUMBER(J147),J147,"") ->  | E158: =IF(AND(ISNUMBER($G154),ISNUMBER($M154)),SUM($G154,$M154),"") ->  | F158: =IF(OR(ISNUMBER(D158),ISNUMBER(E158)),SUM(D158,E158),"") -> 
B159: Overall Historic Damages to be Used in BCR Calculation
B160: Recurrence Interval (Years) | C160: Total Historic Damages | D160: Error Check: | E160: =IF(COUNT(C161:C172)<2,"",IF(AND(Values!Q1:Q12,Values!R1:R12),"","Total damages need to increase with increasing RI!")) -> 
B161: =IF(ISNUMBER('Freq Calculations'!H10),'Freq Calculations'!H10,"") ->  | C161: =IF(ISNUMBER('Freq Calculations'!I10),'Freq Calculations'!I10,"") -> 
B162: =IF(ISNUMBER('Freq Calculations'!H11),'Freq Calculations'!H11,"") ->  | C162: =IF(ISNUMBER('Freq Calculations'!I11),'Freq Calculations'!I11,"") -> 
B163: =IF(ISNUMBER('Freq Calculations'!H12),'Freq Calculations'!H12,"") ->  | C163: =IF(ISNUMBER('Freq Calculations'!I12),'Freq Calculations'!I12,"") -> 
B164: =IF(ISNUMBER('Freq Calculations'!H13),'Freq Calculations'!H13,"") ->  | C164: =IF(ISNUMBER('Freq Calculations'!I13),'Freq Calculations'!I13,"") -> 
B165: =IF(ISNUMBER('Freq Calculations'!H14),'Freq Calculations'!H14,"") ->  | C165: =IF(ISNUMBER('Freq Calculations'!I14),'Freq Calculations'!I14,"") -> 
B166: =IF(ISNUMBER('Freq Calculations'!H15),'Freq Calculations'!H15,"") ->  | C166: =IF(ISNUMBER('Freq Calculations'!I15),'Freq Calculations'!I15,"") -> 
B167: =IF(ISNUMBER('Freq Calculations'!H16),'Freq Calculations'!H16,"") ->  | C167: =IF(ISNUMBER('Freq Calculations'!I16),'Freq Calculations'!I16,"") -> 
B168: =IF(ISNUMBER('Freq Calculations'!H17),'Freq Calculations'!H17,"") ->  | C168: =IF(ISNUMBER('Freq Calculations'!I17),'Freq Calculations'!I17,"") -> 
B169: =IF(ISNUMBER('Freq Calculations'!H18),'Freq Calculations'!H18,"") ->  | C169: =IF(ISNUMBER('Freq Calculations'!I18),'Freq Calculations'!I18,"") -> 
B170: =IF(ISNUMBER('Freq Calculations'!H19),'Freq Calculations'!H19,"") ->  | C170: =IF(ISNUMBER('Freq Calculations'!I19),'Freq Calculations'!I19,"") -> 
B171: =IF(ISNUMBER('Freq Calculations'!H20),'Freq Calculations'!H20,"") ->  | C171: =IF(ISNUMBER('Freq Calculations'!I20),'Freq Calculations'!I20,"") -> 
B172: =IF(ISNUMBER('Freq Calculations'!H21),'Freq Calculations'!H21,"") ->  | C172: =IF(ISNUMBER('Freq Calculations'!I21),'Freq Calculations'!I21,"") -> 

Sheet Post Resil Damages (hidden)
B2: Hazard Mitigation Cost Effectiveness Tool
B4: BCR Summary | L4: Tools
B5: Proposed Project Effectiveness (Years): | D5: ='Project Info'!C51 -> 0
B6: Total Project Benefits: | D6: =IF(ISNUMBER(PV_Annual_Damages_Before_Mitigation-PV_Annual_Damages_After_Mitigation),PV_Annual_Damages_Before_Mitigation-PV_Annual_Damages_After_Mitigation,"") -> 
B7: Total BCA Project Costs: | D7: =IF(ISNUMBER(Total_Project_Cost),Total_Project_Cost,"") -> 0
B8: Benefit-Cost Ratio (BCR): | D8: =BCR -> 
B11: Post-Resilience Damage Information
B12: Section I - General Information
B13: Agency: | D13: =IF(ISBLANK('Project Info'!$C$38),"",'Project Info'!$C$38) -> 
B14: Project Name: | D14: =IF(ISBLANK('Project Info'!$C$43),"",'Project Info'!$C$43) -> 
B15: Analysis Year: | D15: =IF(ISNUMBER(Analysis_Year),Analysis_Year,"") -> 
B16: Section II - Expected Damages
B17: Source/Documentation of Expected Damages:
B18: Expected Damages Part A
C19: Physical Damages Costs | E19: Response and Recovery Costs | F19: Other Damage/Loss (describe below)
C20: (includes permanent repairs to damaged fixed structures and rolling stock) | E20: (includes costs of emergency protective measures and temporary repairs or measures that can be avoided by the proposed project)
B21: Recurrence Interval (Years)* | C21: Physical Damage Costs for Fixed Structures ($)* | D21: Physical Damage Costs for Rolling Stock ($)* | E21: Response and Recovery Costs ($)* | F21: Other Damage or Loss ($) | G21: Total Part A Damages
G22: =IF(AND(ISNUMBER($C22),ISNUMBER($D22),ISNUMBER($E22),ISNUMBER($F22)),SUM($C22,$D22,$E22,$F22),"") -> 
G23: =IF(AND(ISNUMBER($C23),ISNUMBER($D23),ISNUMBER($E23),ISNUMBER($F23)),SUM($C23,$D23,$E23,$F23),"") -> 
F27: =IF(COUNTBLANK(B27:E27)=0,(VLOOKUP(Analysis_Year,'Freq Calculations'!$E$54:$F$162,2,FALSE)/VLOOKUP(E27,'Freq Calculations'!$E$54:$F$162,2,FALSE))*(C27+D27),"") ->  | I27: =IF(AND(ISNUMBER(G27), ISNUMBER(H27)), (VLOOKUP(Analysis_Year,'Freq Calculations'!$E$54:$F$162,2,FALSE)/VLOOKUP(H27,'Freq Calculations'!$E$54:$F$162,2,FALSE))*G27,"") ->  | L27: =IF(AND(ISNUMBER(J27), ISNUMBER(K27)), (VLOOKUP(Analysis_Year,'Freq Calculations'!$E$54:$F$162,2,FALSE)/VLOOKUP(K27,'Freq Calculations'!$E$54:$F$162,2,FALSE))*J27,"") ->  | M27: =IF(AND(ISNUMBER($F27),ISNUMBER($I27),ISNUMBER($L27)),SUM($F27,$I27,$L27),"") -> 
F28: =IF(COUNTBLANK(B28:E28)=0,(VLOOKUP(Analysis_Year,'Freq Calculations'!$E$54:$F$162,2,FALSE)/VLOOKUP(E28,'Freq Calculations'!$E$54:$F$162,2,FALSE))*(C28+D28),"") ->  | I28: =IF(AND(ISNUMBER(G28), ISNUMBER(H28)), (VLOOKUP(Analysis_Year,'Freq Calculations'!$E$54:$F$162,2,FALSE)/VLOOKUP(H28,'Freq Calculations'!$E$54:$F$162,2,FALSE))*G28,"") ->  | L28: =IF(AND(ISNUMBER(J28), ISNUMBER(K28)), (VLOOKUP(Analysis_Year,'Freq Calculations'!$E$54:$F$162,2,FALSE)/VLOOKUP(K28,'Freq Calculations'!$E$54:$F$162,2,FALSE))*J28,"") -> 
F29: =IF(COUNTBLANK(B29:E29)=0,(VLOOKUP(Analysis_Year,'Freq Calculations'!$E$54:$F$162,2,FALSE)/VLOOKUP(E29,'Freq Calculations'!$E$54:$F$162,2,FALSE))*(C29+D29),"") ->  | I29: =IF(AND(ISNUMBER(G29), ISNUMBER(H29)), (VLOOKUP(Analysis_Year,'Freq Calculations'!$E$54:$F$162,2,FALSE)/VLOOKUP(H29,'Freq Calculations'!$E$54:$F$162,2,FALSE))*G29,"") ->  | L29: =IF(AND(ISNUMBER(J29), ISNUMBER(K29)), (VLOOKUP(Analysis_Year,'Freq Calculations'!$E$54:$F$162,2,FALSE)/VLOOKUP(K29,'Freq Calculations'!$E$54:$F$162,2,FALSE))*J29,"") -> 
F30: =IF(COUNTBLANK(B30:E30)=0,(VLOOKUP(Analysis_Year,'Freq Calculations'!$E$54:$F$162,2,FALSE)/VLOOKUP(E30,'Freq Calculations'!$E$54:$F$162,2,FALSE))*(C30+D30),"") ->  | I30: =IF(AND(ISNUMBER(G30), ISNUMBER(H30)), (VLOOKUP(Analysis_Year,'Freq Calculations'!$E$54:$F$162,2,FALSE)/VLOOKUP(H30,'Freq Calculations'!$E$54:$F$162,2,FALSE))*G30,"") ->  | L30: =IF(AND(ISNUMBER(J30), ISNUMBER(K30)), (VLOOKUP(Analysis_Year,'Freq Calculations'!$E$54:$F$162,2,FALSE)/VLOOKUP(K30,'Freq Calculations'!$E$54:$F$162,2,FALSE))*J30,"") -> 
F31: =IF(COUNTBLANK(B31:E31)=0,(VLOOKUP(Analysis_Year,'Freq Calculations'!$E$54:$F$162,2,FALSE)/VLOOKUP(E31,'Freq Calculations'!$E$54:$F$162,2,FALSE))*(C31+D31),"") ->  | I31: =IF(AND(ISNUMBER(G31), ISNUMBER(H31)), (VLOOKUP(Analysis_Year,'Freq Calculations'!$E$54:$F$162,2,FALSE)/VLOOKUP(H31,'Freq Calculations'!$E$54:$F$162,2,FALSE))*G31,"") ->  | L31: =IF(AND(ISNUMBER(J31), ISNUMBER(K31)), (VLOOKUP(Analysis_Year,'Freq Calculations'!$E$54:$F$162,2,FALSE)/VLOOKUP(K31,'Freq Calculations'!$E$54:$F$162,2,FALSE))*J31,"") -> 
F32: =IF(COUNTBLANK(B32:E32)=0,(VLOOKUP(Analysis_Year,'Freq Calculations'!$E$54:$F$162,2,FALSE)/VLOOKUP(E32,'Freq Calculations'!$E$54:$F$162,2,FALSE))*(C32+D32),"") ->  | I32: =IF(AND(ISNUMBER(G32), ISNUMBER(H32)), (VLOOKUP(Analysis_Year,'Freq Calculations'!$E$54:$F$162,2,FALSE)/VLOOKUP(H32,'Freq Calculations'!$E$54:$F$162,2,FALSE))*G32,"") ->  | L32: =IF(AND(ISNUMBER(J32), ISNUMBER(K32)), (VLOOKUP(Analysis_Year,'Freq Calculations'!$E$54:$F$162,2,FALSE)/VLOOKUP(K32,'Freq Calculations'!$E$54:$F$162,2,FALSE))*J32,"") -> 
F33: =IF(COUNTBLANK(B33:E33)=0,(VLOOKUP(Analysis_Year,'Freq Calculations'!$E$54:$F$162,2,FALSE)/VLOOKUP(E33,'Freq Calculations'!$E$54:$F$162,2,FALSE))*(C33+D33),"") ->  | I33: =IF(AND(ISNUMBER(G33), ISNUMBER(H33)), (VLOOKUP(Analysis_Year,'Freq Calculations'!$E$54:$F$162,2,FALSE)/VLOOKUP(H33,'Freq Calculations'!$E$54:$F$162,2,FALSE))*G33,"") ->  | L33: =IF(AND(ISNUMBER(J33), ISNUMBER(K33)), (VLOOKUP(Analysis_Year,'Freq Calculations'!$E$54:$F$162,2,FALSE)/VLOOKUP(K33,'Freq Calculations'!$E$54:$F$162,2,FALSE))*J33,"") -> 
B34: Expected Damages Part B
B35: Cost of Loss of Transit Services for Passengers ($/Passenger/Hour): | D35: =+Service_Loss_Coeff -> 17.08
B36: Current Federal Mileage Rate ($/Mile): | D36: =Federal_Mileage_Coeff -> 0.535
C37: Damages Due to Delay and/or Extra Travel Time for Passengers in Rail or Ferry Services | G37: Damages Due to Delay and/or Extra Travel Time and Miles for Passengers in Buses
B38: Recurrence Interval (Years) | C38: Delay or Extra Travel Time (Hours)* | D38: Average Daily Number of Passengers* | E38: Duration of Loss or Reduction of Rail or Ferry Services (Days)* | F38: Loss of Services Damages (Rail or Ferry) | G38: Additional Time per One-way Trip (Hours)* | H38: Additional Travel Miles* | I38: Duration of Loss or Reduction of Services (Days)* | J38: Number of One-way Traffic Trips Per Day (Buses)* | K38: Average Number of Passengers per Bus* | L38: Loss of Services Damages (Buses) | M38: Total Part B Damages
B39: =IF(ISNUMBER(B22),B22,"") ->  | F39: =IF(COUNTBLANK(B39:E39)=0,$D$35*C39*D39*E39,"") ->  | L39: =IF(COUNTBLANK(G39:K39)=0,$D$35*G39*J39*K39*I39+$D$36*H39*J39*I39," ") ->  | M39: =IF(AND(ISNUMBER($F39),ISNUMBER($L39)),SUM($F39,$L39),"") -> 
B40: =IF(ISNUMBER(B23),B23,"") ->  | F40: =IF(COUNTBLANK(B40:E40)=0,$D$35*C40*D40*E40,"") ->  | L40: =IF(COUNTBLANK(G40:K40)=0,$D$35*G40*J40*K40*I40+$D$36*H40*J40*I40," ") ->  | M40: =IF(AND(ISNUMBER($F40),ISNUMBER($L40)),SUM($F40,$L40),"") -> 
B51: Overall Expected Damages to be Used in BCR Calculation
B52: Recurrence Interval (Years) | C52: Total Expected Damages | D52: Error Check: | E52: =IF(COUNT(C53:C64)<2,"",IF(AND(T53:T64,U53:U64),"","Total damages need to increase with increasing RI!")) ->  | F52: =IF(COUNT(E52:E63)<2,"",IF(AND(V52:V63,W52:W63),"","Total damages need to increase with increasing RI!")) -> 
B53: =IF(ISNUMBER(B22),B22,"") ->  | C53: =IF(OR(ISNUMBER(G22),ISNUMBER(M39)),SUM(G22,M39),"") ->  | R53: =IF(ISNUMBER(B53),RANK(B53,$B$53:$B$64),"") ->  | S53: =IF(ISNUMBER(C53),RANK(C53,$C$53:$C$64),"") ->  | T53: =IF(ISNUMBER(R54),R53>R54,"") ->  | U53: =IF(C53=0,TRUE,IF(ISNUMBER(S54),S53>S54,"")) -> 
C54: =IF(OR(ISNUMBER(G23),ISNUMBER(M40)),SUM(G23,M40),"") -> 
C55: =IF(OR(ISNUMBER(G24),ISNUMBER(M41)),SUM(G24,M41),"") -> 
C56: =IF(OR(ISNUMBER(G25),ISNUMBER(M42)),SUM(G25,M42),"") -> 
C57: =IF(OR(ISNUMBER(G26),ISNUMBER(M43)),SUM(G26,M43),"") -> 
C58: =IF(OR(ISNUMBER(M27),ISNUMBER(M44)),SUM(M27,M44),"") -> 
T64: =IF(ISNUMBER(#REF!),R64>#REF!,"") ->  | U64: =IF(C64=0,TRUE,IF(ISNUMBER(#REF!),S64>#REF!,"")) -> 

Sheet Analysis Results
B2: Hazard Mitigation Cost Effectiveness Tool
B4: BCA Results
B6: Section I - Agency Information | K6: Tools
B7: Agency: | C7: =IF(ISBLANK('Project Info'!$C$38),"",'Project Info'!$C$38) -> 
B8: Address: | C8: =IF(ISBLANK('Project Info'!$C$39),"",'Project Info'!$C$39) -> 
B9: Address Line 2: | C9: =IF(ISBLANK('Project Info'!$C$40),"",'Project Info'!$C$40) -> 
B10: City: | C10: =IF(ISBLANK('Project Info'!$C$41),"",'Project Info'!$C$41) ->  | F10: State: | G10: =IF('Project Info'!$G$41="","",'Project Info'!$G$41) ->  | H10: Zip: | I10: =IF(ISBLANK('Project Info'!$I$41),"",'Project Info'!$I$41) -> 
B11: Section II - Project Information
B12: Project Name: | C12: =IF(ISBLANK('Project Info'!$C$43),"",'Project Info'!$C$43) -> 
B13: Application Date: | C13: =IF(ISBLANK('Project Info'!$G$44),"",'Project Info'!$G$44) -> 
B14: Analysis Year: | C14: =IF(ISNUMBER(Analysis_Year),Analysis_Year,"") -> 
B15: Section III - Resilience Damages
B16: Pre-Resilience Damages* | F16: Post-Resilience Damages
B17: Recurrence Interval (Years) | C17: Total Damages | D17: Annualized Damages | F17: Recurrence Interval (Years) | G17: Total Damages | H17: Annualized Damages
B18: =IF(Values!$J$3=1,'Damage Info'!B65,IF(Values!$J$3=2,'Damage Info'!B161,"")) ->  | C18: =IF(Values!$J$3=1,'Damage Info'!C65,IF(Values!$J$3=2,'Damage Info'!C161,"")) ->  | D18: =IF(C18=0,0,IF(Values!L3=0,"",IF(Values!L4=0,Values!L3*C18,EXP(0.5*(LN(C18)+LN(C19)))*(Values!L3-Values!L4)))) ->  | F18: =IF(Values!$J$9=1,IF(ISNUMBER(B18),B18,""),IF(ISNUMBER('Post Resil Damages'!B53),'Post Resil Damages'!B53,"")) ->  | G18: =IF(Values!$J$9=1,IF(ISNUMBER(C18),IF($B18>Project_Effectiveness,C18,0),""),IF(ISNUMBER('Post Resil Damages'!C53),'Post Resil Damages'!C53,"")) ->  | H18: =IF(G18=0,0,IF(Values!M3=0,"",IF(Values!M4=0,Values!M3*G18,EXP(0.5*(LN(G18)+LN(G19)))*(Values!M3-Values!M4)))) -> 
B19: =IF(Values!$J$3=1,'Damage Info'!B66,IF(Values!$J$3=2,'Damage Info'!B162,"")) ->  | C19: =IF(Values!$J$3=1,'Damage Info'!C66,IF(Values!$J$3=2,'Damage Info'!C162,"")) ->  | D19: =IF(C19=0,0,IF(Values!L4=0,"",IF(Values!L5=0,Values!L4*C19,EXP(0.5*(LN(C19)+LN(C20)))*(Values!L4-Values!L5)))) ->  | F19: =IF(Values!$J$9=1,IF(ISNUMBER(B19),B19,""),IF(ISNUMBER('Post Resil Damages'!B54),'Post Resil Damages'!B54,"")) ->  | G19: =IF(Values!$J$9=1,IF(ISNUMBER(C19),IF($B19>Project_Effectiveness,C19,0),""),IF(ISNUMBER('Post Resil Damages'!C54),'Post Resil Damages'!C54,"")) ->  | H19: =IF(G19=0,0,IF(Values!M4=0,"",IF(Values!M5=0,Values!M4*G19,EXP(0.5*(LN(G19)+LN(G20)))*(Values!M4-Values!M5)))) -> 
B20: =IF(Values!$J$3=1,'Damage Info'!B67,IF(Values!$J$3=2,'Damage Info'!B163,"")) ->  | C20: =IF(Values!$J$3=1,'Damage Info'!C67,IF(Values!$J$3=2,'Damage Info'!C163,"")) ->  | D20: =IF(C20=0,0,IF(Values!L5=0,"",IF(Values!L6=0,Values!L5*C20,EXP(0.5*(LN(C20)+LN(C21)))*(Values!L5-Values!L6)))) ->  | F20: =IF(Values!$J$9=1,IF(ISNUMBER(B20),B20,""),IF(ISNUMBER('Post Resil Damages'!B55),'Post Resil Damages'!B55,"")) ->  | G20: =IF(Values!$J$9=1,IF(ISNUMBER(C20),IF($B20>Project_Effectiveness,C20,0),""),IF(ISNUMBER('Post Resil Damages'!C55),'Post Resil Damages'!C55,"")) ->  | H20: =IF(G20=0,0,IF(Values!M5=0,"",IF(Values!M6=0,Values!M5*G20,EXP(0.5*(LN(G20)+LN(G21)))*(Values!M5-Values!M6)))) -> 
B21: =IF(Values!$J$3=1,'Damage Info'!B68,IF(Values!$J$3=2,'Damage Info'!B164,"")) ->  | C21: =IF(Values!$J$3=1,'Damage Info'!C68,IF(Values!$J$3=2,'Damage Info'!C164,"")) ->  | D21: =IF(C21=0,0,IF(Values!L6=0,"",IF(Values!L7=0,Values!L6*C21,EXP(0.5*(LN(C21)+LN(C22)))*(Values!L6-Values!L7)))) ->  | F21: =IF(Values!$J$9=1,IF(ISNUMBER(B21),B21,""),IF(ISNUMBER('Post Resil Damages'!B56),'Post Resil Damages'!B56,"")) ->  | G21: =IF(Values!$J$9=1,IF(ISNUMBER(C21),IF($B21>Project_Effectiveness,C21,0),""),IF(ISNUMBER('Post Resil Damages'!C56),'Post Resil Damages'!C56,"")) ->  | H21: =IF(G21=0,0,IF(Values!M6=0,"",IF(Values!M7=0,Values!M6*G21,EXP(0.5*(LN(G21)+LN(G22)))*(Values!M6-Values!M7)))) -> 
B22: =IF(Values!$J$3=1,'Damage Info'!B69,IF(Values!$J$3=2,'Damage Info'!B165,"")) ->  | C22: =IF(Values!$J$3=1,'Damage Info'!C69,IF(Values!$J$3=2,'Damage Info'!C165,"")) ->  | D22: =IF(C22=0,0,IF(Values!L7=0,"",IF(Values!L8=0,Values!L7*C22,EXP(0.5*(LN(C22)+LN(C23)))*(Values!L7-Values!L8)))) ->  | F22: =IF(Values!$J$9=1,IF(ISNUMBER(B22),B22,""),IF(ISNUMBER('Post Resil Damages'!B57),'Post Resil Damages'!B57,"")) ->  | G22: =IF(Values!$J$9=1,IF(ISNUMBER(C22),IF($B22>Project_Effectiveness,C22,0),""),IF(ISNUMBER('Post Resil Damages'!C57),'Post Resil Damages'!C57,"")) ->  | H22: =IF(G22=0,0,IF(Values!M7=0,"",IF(Values!M8=0,Values!M7*G22,EXP(0.5*(LN(G22)+LN(G23)))*(Values!M7-Values!M8)))) -> 
B23: =IF(Values!$J$3=1,'Damage Info'!B70,IF(Values!$J$3=2,'Damage Info'!B166,"")) ->  | C23: =IF(Values!$J$3=1,'Damage Info'!C70,IF(Values!$J$3=2,'Damage Info'!C166,"")) ->  | D23: =IF(C23=0,0,IF(Values!L8=0,"",IF(Values!L9=0,Values!L8*C23,EXP(0.5*(LN(C23)+LN(C24)))*(Values!L8-Values!L9)))) ->  | F23: =IF(Values!$J$9=1,IF(ISNUMBER(B23),B23,""),IF(ISNUMBER('Post Resil Damages'!B58),'Post Resil Damages'!B58,"")) ->  | G23: =IF(Values!$J$9=1,IF(ISNUMBER(C23),IF($B23>Project_Effectiveness,C23,0),""),IF(ISNUMBER('Post Resil Damages'!C58),'Post Resil Damages'!C58,"")) ->  | H23: =IF(G23=0,0,IF(Values!M8=0,"",IF(Values!M9=0,Values!M8*G23,EXP(0.5*(LN(G23)+LN(G24)))*(Values!M8-Values!M9)))) -> 
B24: =IF(Values!$J$3=1,'Damage Info'!B71,IF(Values!$J$3=2,'Damage Info'!B167,"")) ->  | C24: =IF(Values!$J$3=1,'Damage Info'!C71,IF(Values!$J$3=2,'Damage Info'!C167,"")) ->  | D24: =IF(C24=0,0,IF(Values!L9=0,"",IF(Values!L10=0,Values!L9*C24,EXP(0.5*(LN(C24)+LN(C25)))*(Values!L9-Values!L10)))) ->  | F24: =IF(Values!$J$9=1,IF(ISNUMBER(B24),B24,""),IF(ISNUMBER('Post Resil Damages'!B59),'Post Resil Damages'!B59,"")) ->  | G24: =IF(Values!$J$9=1,IF(ISNUMBER(C24),IF($B24>Project_Effectiveness,C24,0),""),IF(ISNUMBER('Post Resil Damages'!C59),'Post Resil Damages'!C59,"")) ->  | H24: =IF(G24=0,0,IF(Values!M9=0,"",IF(Values!M10=0,Values!M9*G24,EXP(0.5*(LN(G24)+LN(G25)))*(Values!M9-Values!M10)))) -> 
B25: =IF(Values!$J$3=1,'Damage Info'!B72,IF(Values!$J$3=2,'Damage Info'!B168,"")) ->  | C25: =IF(Values!$J$3=1,'Damage Info'!C72,IF(Values!$J$3=2,'Damage Info'!C168,"")) ->  | D25: =IF(C25=0,0,IF(Values!L10=0,"",IF(Values!L11=0,Values!L10*C25,EXP(0.5*(LN(C25)+LN(C26)))*(Values!L10-Values!L11)))) ->  | F25: =IF(ISNUMBER(B25),B25,"") ->  | G25: =IF(ISNUMBER(C25),IF($B25>Project_Effectiveness,C25,0),"") ->  | H25: =IF(G25=0,0,IF(Values!M10=0,"",IF(Values!M11=0,Values!M10*G25,EXP(0.5*(LN(G25)+LN(G26)))*(Values!M10-Values!M11)))) -> 
B26: =IF(Values!$J$3=1,'Damage Info'!B73,IF(Values!$J$3=2,'Damage Info'!B169,"")) ->  | C26: =IF(Values!$J$3=1,'Damage Info'!C73,IF(Values!$J$3=2,'Damage Info'!C169,"")) ->  | D26: =IF(C26=0,0,IF(Values!L11=0,"",IF(Values!L12=0,Values!L11*C26,EXP(0.5*(LN(C26)+LN(C27)))*(Values!L11-Values!L12)))) ->  | H26: =IF(G26=0,0,IF(Values!M11=0,"",IF(Values!M12=0,Values!M11*G26,EXP(0.5*(LN(G26)+LN(G27)))*(Values!M11-Values!M12)))) -> 
B27: =IF(Values!$J$3=1,'Damage Info'!B74,IF(Values!$J$3=2,'Damage Info'!B170,"")) ->  | C27: =IF(Values!$J$3=1,'Damage Info'!C74,IF(Values!$J$3=2,'Damage Info'!C170,"")) ->  | D27: =IF(C27=0,0,IF(Values!L12=0,"",IF(Values!L13=0,Values!L12*C27,EXP(0.5*(LN(C27)+LN(C28)))*(Values!L12-Values!L13)))) ->  | H27: =IF(G27=0,0,IF(Values!M12=0,"",IF(Values!M13=0,Values!M12*G27,EXP(0.5*(LN(G27)+LN(G28)))*(Values!M12-Values!M13)))) -> 
B28: =IF(Values!$J$3=1,'Damage Info'!B75,IF(Values!$J$3=2,'Damage Info'!B171,"")) ->  | C28: =IF(Values!$J$3=1,'Damage Info'!C75,IF(Values!$J$3=2,'Damage Info'!C171,"")) ->  | D28: =IF(C28=0,0,IF(Values!L13=0,"",IF(Values!L14=0,Values!L13*C28,EXP(0.5*(LN(C28)+LN(C29)))*(Values!L13-Values!L14)))) ->  | H28: =IF(G28=0,0,IF(Values!M13=0,"",IF(Values!M14=0,Values!M13*G28,EXP(0.5*(LN(G28)+LN(G29)))*(Values!M13-Values!M14)))) -> 
B29: =IF(Values!$J$3=1,'Damage Info'!B76,IF(Values!$J$3=2,'Damage Info'!B172,"")) ->  | C29: =IF(Values!$J$3=1,'Damage Info'!C76,IF(Values!$J$3=2,'Damage Info'!C172,"")) ->  | D29: =IF(C29=0,0,IF(Values!L14=0,"",IF(Values!L15=0,Values!L14*C29,EXP(0.5*(LN(C29)+LN(C30)))*(Values!L14-Values!L15)))) ->  | H29: =IF(G29=0,0,IF(Values!M14=0,"",IF(Values!M15=0,Values!M14*G29,EXP(0.5*(LN(G29)+LN(G30)))*(Values!M14-Values!M15)))) -> 
B30: Sum of Annualized Damages: | D30: =IF(COUNTBLANK(D18:D29)=12,"",SUM(D18:D29)) ->  | F30: Sum of Annualized Damages: | H30: =IF(COUNTBLANK(H18:H29)=12,"",SUM(H18:H29)) -> 
B31: Present Value of Annual Damages: | D31: =IF(ISNUMBER(Present_Value_Coefficient),Present_Value_Coefficient*D30,"") ->  | F31: Present Value of Annual Damages: | H31: =IF(ISNUMBER(Present_Value_Coefficient),Present_Value_Coefficient*H30,"") -> 
B32: =IF(Values!$J$3=1,"*Pre-Resilience Damages are based on Expected Damages.",IF(Values!J3=2,"*Pre-Resilience Damages are based on Historic Damages.","")) -> 
B33: Section IV - Final Results of BCA
B34: Reduction in Annual Damages: | D34: =IF(ISNUMBER(D30-H30),D30-H30,"") -> 
B35: Total Project Benefits: | D35: =IF(ISNUMBER(PV_Annual_Damages_Before_Mitigation-PV_Annual_Damages_After_Mitigation),PV_Annual_Damages_Before_Mitigation-PV_Annual_Damages_After_Mitigation,"") -> 
B36: Total BCA Project Costs: | D36: =IF(ISNUMBER(Total_Project_Cost),Total_Project_Cost,"") -> 0
B37: Benefits Minus Costs: | D37: =IF(ISNUMBER(Total_Project_Benefits-Total_Project_Cost),Total_Project_Benefits-Total_Project_Cost,"") -> 
B38: Benefit-Cost Ratio (BCR): | D38: =IF(ISNUMBER(Total_Project_Benefits/Total_Project_Cost),Total_Project_Benefits/Total_Project_Cost,"") ->  | F38: =IF(ISNUMBER(BCR),IF(BCR<0,"BCR is negative. A negative BCR indicates that the proposed project is expected to increase damages rather than decrease damages and is not recommended.", IF(BCR>1,"BCR is greater than 1.0; the project is cost-effective based on the quantitative information provided.","BCR is NOT greater than 1.0; although the project is not considered cost-effective based on the quantitative information provided, it may be cost-effective based on a review of the qualitative information provided.")), "BCR is not evaluated.") -> BCR is not evaluated.
B39: Section V - Qualitative Benefits
B40: Description of Qualitative Benefits of the Proposed Project:
B41: Average Loss of Transit Revenue ($/day):
B42: Source/ Documentation of Qualitative Benefits:

Sheet Values (hidden)
A1: Select State | B1: Select Year | C1: Select Year | D1: Losses or Delays? | E1: Select Damage Type | F1: Source | G1: Location | H1: Cost | I1: Damage Type | J1: Damage Type Values | L1: Before Mitig | M1: After Mitig | O1: =IF(ISNUMBER('Damage Info'!B161),RANK('Damage Info'!B161,'Damage Info'!$B$161:$B$172),"") ->  | P1: =IF(ISNUMBER('Damage Info'!C161),RANK('Damage Info'!C161,'Damage Info'!$C$161:$C$172),"") ->  | Q1: =IF(ISNUMBER(O2),O1>O2,"") ->  | R1: =IF('Damage Info'!C161=0,TRUE,IF(ISNUMBER(P2),P1>P2,"")) ->  | W1: Historic Damages, Questionnaire
C2: 2014 | D2: No | E2: Expected Damages | G2: Default | H2: 17.08 | I2: Select Damage Type | J2: 0 = No Selection, 1 = Expected Damages, 2 = Historic Damages | L2: Average Annual Number of Events | M2: Average Annual Number of Events | O2: =IF(ISNUMBER('Damage Info'!B162),RANK('Damage Info'!B162,'Damage Info'!$B$161:$B$172),"") ->  | P2: =IF(ISNUMBER('Damage Info'!C162),RANK('Damage Info'!C162,'Damage Info'!$C$161:$C$172),"") ->  | R2: =IF('Damage Info'!C162=0,TRUE,IF(ISNUMBER(P3),P2>P3,"")) ->  | T2: Events | U2: ='Damage Info'!G85 -> 0 | W2: ERROR MESSAGES | AK2: WARNING MESSAGES | AY2: CONCLUSIONS
A3: Alabama | B3: 2017 | C3: 2015 | D3: Yes | E3: Historic Damages | F3: Local historic cost data | G3: Boston-Worcester-Manchester (MA-NH) | H3: 21.58015226 | I3: Expected Damages | J3: =IF('Damage Info'!D16="Expected Damages",1,IF('Damage Info'!D16="Historic Damages",2,0)) -> 0 | L3: =IF(ISNUMBER('Analysis Results'!B18),1/'Analysis Results'!B18,0) -> 0 | M3: =IF(ISNUMBER('Analysis Results'!F18),1/'Analysis Results'!F18,0) -> 0 | O3: =IF(ISNUMBER('Damage Info'!B163),RANK('Damage Info'!B163,'Damage Info'!$B$161:$B$172),"") ->  | P3: =IF(ISNUMBER('Damage Info'!C163),RANK('Damage Info'!C163,'Damage Info'!$C$161:$C$172),"") ->  | R3: =IF('Damage Info'!C163=0,TRUE,IF(ISNUMBER(P4),P3>P4,"")) ->  | T3: Known Event R.I>s | U3: ='Damage Info'!M85 -> 0 | X3: Events (Q1) | AK3: Events (Q1) | AY3: Events (Q1)
A4: Alaska | B4: 2018 | F4: Current contractor bids | G4: New York-Newark-Bridgeport (NY-NJ-CT-PA) | H4: 22.08294786 | I4: Historic Damages | L4: =IF(ISNUMBER('Analysis Results'!B19),1/'Analysis Results'!B19,0) -> 0 | M4: =IF(ISNUMBER('Analysis Results'!F19),1/'Analysis Results'!F19,0) -> 0 | O4: =IF(ISNUMBER('Damage Info'!B164),RANK('Damage Info'!B164,'Damage Info'!$B$161:$B$172),"") ->  | P4: =IF(ISNUMBER('Damage Info'!C164),RANK('Damage Info'!C164,'Damage Info'!$C$161:$C$172),"") ->  | R4: =IF('Damage Info'!C164=0,TRUE,IF(ISNUMBER(P5),P4>P5,"")) ->  | T4: Errors | U4: =HLOOKUP(U2,X4:AJ18,15) -> Insufficient number of historic damage events of known RIs to conduct a valid analysis! | X4: 0 | Y4: 1 | Z4: 2 | AA4: 3 | AB4: 4 | AC4: 5 | AD4: 6 | AE4: 7 | AF4: 8 | AG4: 9 | AH4: 10 | AI4: 11 | AJ4: 12 | AL4: 0 | AM4: 1 | AN4: 2 | AO4: 3 | AP4: 4 | AQ4: 5 | AR4: 6 | AS4: 7 | AT4: 8 | AU4: 9 | AV4: 10 | AW4: 11 | AX4: 12 | AZ4: 0 | BA4: 1 | BB4: 2 | BC4: 3 | BD4: 4 | BE4: 5 | BF4: 6 | BG4: 7 | BH4: 8 | BI4: 9 | BJ4: 10 | BK4: 11 | BL4: 12
A5: American Samoa | F5: Published unit costs | G5: Philadelphia-Camden-Vineyard (PA-NJ-DE-MD) | H5: 17.77638913 | J5: Basis for Post Resilence Damages | L5: =IF(ISNUMBER('Analysis Results'!B20),1/'Analysis Results'!B20,0) -> 0 | M5: =IF(ISNUMBER('Analysis Results'!F20),1/'Analysis Results'!F20,0) -> 0 | O5: =IF(ISNUMBER('Damage Info'!B165),RANK('Damage Info'!B165,'Damage Info'!$B$161:$B$172),"") ->  | P5: =IF(ISNUMBER('Damage Info'!C165),RANK('Damage Info'!C165,'Damage Info'!$C$161:$C$172),"") ->  | R5: =IF('Damage Info'!C165=0,TRUE,IF(ISNUMBER(P6),P5>P6,"")) ->  | T5: Warnings | U5: =HLOOKUP(U2,AL4:AX18,15) -> None | V5: Known Event R.I.s (Q2) | W5: 0 | X5: Insufficient number of historic damage events of known RIs to conduct a valid analysis! | Y5: Insufficient number of historic damage events of known RIs to conduct a valid analysis! | Z5: Insufficient number of historic damage events of known RIs to conduct a valid analysis! | AA5: None | AB5: None | AC5: None | AD5: None | AE5: None | AF5: None | AG5: None | AH5: None | AI5: None | AJ5: None | AK5: 0 | AL5: None | AM5: None | AN5: None | AO5: None | AP5: None | AQ5: None | AR5: None | AS5: None | AT5: None | AU5: None | AV5: None | AW5: None | AX5: None | AY5: 0 | AZ5: A minimum of one historic event of known RI or three historic events of unknown RI are needed to conduct a valid analysis. | BA5: A minimum of one historic event of known RI or three historic events of unknown RI are needed to conduct a valid analysis. | BB5: A minimum of one historic event of known RI or three historic events of unknown RI are needed to conduct a valid analysis. | BC5: Three historic events of unknown RIs is sufficient to conduct a valid analysis. | BD5: Three or more historic events of unknown RIs is sufficient to conduct a valid analysis. | BE5: Three or more historic events of unknown RIs is sufficient to conduct a valid analysis. | BF5: Three or more historic events of unknown RIs is sufficient to conduct a valid analysis. | BG5: Three or more historic events of unknown RIs is sufficient to conduct a valid analysis. | BH5: Three or more historic events of unknown RIs is sufficient to conduct a valid analysis. | BI5: Three or more historic events of unknown RIs is sufficient to conduct a valid analysis. | BJ5: Three or more historic events of unknown RIs is sufficient to conduct a valid analysis. | BK5: Three or more historic events of unknown RIs is sufficient to conduct a valid analysis. | BL5: Three or more historic events of unknown RIs is sufficient to conduct a valid analysis.
A6: Arizona | G6: Atlanta-Sandy Springs-Gainesville (GA-AL) | H6: 17.38623185 | J6: "Project Effectiveness" as entered above | L6: =IF(ISNUMBER('Analysis Results'!B21),1/'Analysis Results'!B21,0) -> 0 | M6: =IF(ISNUMBER('Analysis Results'!F21),1/'Analysis Results'!F21,0) -> 0 | O6: =IF(ISNUMBER('Damage Info'!B166),RANK('Damage Info'!B166,'Damage Info'!$B$161:$B$172),"") ->  | P6: =IF(ISNUMBER('Damage Info'!C166),RANK('Damage Info'!C166,'Damage Info'!$C$161:$C$172),"") ->  | R6: =IF('Damage Info'!C166=0,TRUE,IF(ISNUMBER(P7),P6>P7,"")) ->  | T6: Conclusions | U6: =HLOOKUP(U2,AZ4:BL18,15) -> A minimum of one historic event of known RI or three historic events of unknown RI are needed to conduct a valid analysis. | W6: 1 | X6: Number of RIs exceeds number of damage events! | Y6: None | Z6: None | AA6: None | AB6: None | AC6: None | AD6: None | AE6: None | AF6: None | AG6: None | AH6: None | AI6: None | AJ6: None | AK6: 1 | AL6: None | AM6: With only one damage event of known RI, the analysis will be of limited accuracy and is not recommended! | AN6: With two historic damage events, both RIs must be determined or the unknown RI event must be eliminated! | AO6: The known RI event must have the highest Total Historic Damages to conduct a valid analysis! | AP6: The known RI event must have the highest Total Historic Damages to conduct a valid analysis! | AQ6: The known RI event must have the highest Total Historic Damages to conduct a valid analysis! | AR6: The known RI event must have the highest Total Historic Damages to conduct a valid analysis! | AS6: The known RI event must have the highest Total Historic Damages to conduct a valid analysis! | AT6: The known RI event must have the highest Total Historic Damages to conduct a valid analysis! | AU6: The known RI event must have the highest Total Historic Damages to conduct a valid analysis! | AV6: The known RI event must have the highest Total Historic Damages to conduct a valid analysis! | AW6: The known RI event must have the highest Total Historic Damages to conduct a valid analysis! | AX6: The known RI event must have the highest Total Historic Damages to conduct a valid analysis! | AY6: 1 | AZ6: A minimum of one historic event of known RI or three historic events of unknown RI are needed to conduct a valid analysis. | BA6: A valid analysis may be conducted using one damage event of known RI, but other expected damage events should be added if possible to improve the accuracy of the analysis. | BB6: A valid analysis may be conducted using one damage event of known RI, but other expected damage events should be added if possible to improve the accuracy of the analysis. | BC6: Two historic events of unknown RIs and one historic event of known RI (see WARNING) is sufficient to conduct a valid analysis. | BD6: Three historic events of unknown RIs and one historic event of known RI (see WARNING) is sufficient to conduct a valid analysis. | BE6: Three or more historic events of unknown RIs and one historic event of known RI (see WARNING) is sufficient to conduct a valid analysis. | BF6: Three or more historic events of unknown RIs and one historic event of known RI (see WARNING) is sufficient to conduct a valid analysis. | BG6: Three or more historic events of unknown RIs and one historic event of known RI (see WARNING) is sufficient to conduct a valid analysis. | BH6: Three or more historic events of unknown RIs and one historic event of known RI (see WARNING) is sufficient to conduct a valid analysis. | BI6: Three or more historic events of unknown RIs and one historic event of known RI (see WARNING) is sufficient to conduct a valid analysis. | BJ6: Three or more historic events of unknown RIs and one historic event of known RI (see WARNING) is sufficient to conduct a valid analysis. | BK6: Three or more historic events of unknown RIs and one historic event of known RI (see WARNING) is sufficient to conduct a valid analysis. | BL6: Three or more historic events of unknown RIs and one historic event of known RI (see WARNING) is sufficient to conduct a valid analysis.
A7: Arkansas | G7: Dallas-Fort Worth (TX) | H7: 15.25888067 | J7: "User-entered Data" (new Tab opens up) | L7: =IF(ISNUMBER('Analysis Results'!B22),1/'Analysis Results'!B22,0) -> 0 | M7: =IF(ISNUMBER('Analysis Results'!F22),1/'Analysis Results'!F22,0) -> 0 | O7: =IF(ISNUMBER('Damage Info'!B167),RANK('Damage Info'!B167,'Damage Info'!$B$161:$B$172),"") ->  | P7: =IF(ISNUMBER('Damage Info'!C167),RANK('Damage Info'!C167,'Damage Info'!$C$161:$C$172),"") ->  | Q7: =IF(ISNUMBER(Values!O8),O7>Values!O8,"") ->  | R7: =IF('Damage Info'!C167=0,TRUE,IF(ISNUMBER(Values!P8),P7>Values!P8,"")) ->  | W7: 2 | X7: Number of RIs exceeds number of damage events! | Y7: Number of RIs exceeds number of damage events! | Z7: None | AA7: None | AB7: None | AC7: None | AD7: None | AE7: None | AF7: None | AG7: None | AH7: None | AI7: None | AJ7: None | AK7: 2 | AL7: None | AM7: None | AN7: None | AO7: The known RI events must have the highest Total Historic Damages to conduct a valid analysis! | AP7: The known RI events must have the highest Total Historic Damages to conduct a valid analysis! | AQ7: The known RI events must have the highest Total Historic Damages to conduct a valid analysis! | AR7: The known RI events must have the highest Total Historic Damages to conduct a valid analysis! | AS7: The known RI events must have the highest Total Historic Damages to conduct a valid analysis! | AT7: The known RI events must have the highest Total Historic Damages to conduct a valid analysis! | AU7: The known RI events must have the highest Total Historic Damages to conduct a valid analysis! | AV7: The known RI events must have the highest Total Historic Damages to conduct a valid analysis! | AW7: The known RI events must have the highest Total Historic Damages to conduct a valid analysis! | AX7: The known RI events must have the highest Total Historic Damages to conduct a valid analysis! | AY7: 2 | AZ7: A minimum of one historic event of known RI or three historic events of unknown RI are needed to conduct a valid analysis. | BA7: A minimum of one historic event of known RI or three historic events of unknown RI are needed to conduct a valid analysis. | BB7: Two historic events of known RIs is sufficient to conduct a valid analysis. | BC7: One historic event of unknown RI and two historic events of known RIs (see WARNING) is sufficient to conduct a valid analysis. | BD7: Two historic events of unknown RIs and two historic events of known RIs (see WARNING) is sufficient to conduct a valid analysis. | BE7: Two or more historic events of unknown RIs and two historic events of known RIs (see WARNING) is sufficient to conduct a valid analysis. | BF7: Two or more historic events of unknown RIs and two historic events of known RIs (see WARNING) is sufficient to conduct a valid analysis. | BG7: Two or more historic events of unknown RIs and two historic events of known RIs (see WARNING) is sufficient to conduct a valid analysis. | BH7: Two or more historic events of unknown RIs and two historic events of known RIs (see WARNING) is sufficient to conduct a valid analysis. | BI7: Two or more historic events of unknown RIs and two historic events of known RIs (see WARNING) is sufficient to conduct a valid analysis. | BJ7: Two or more historic events of unknown RIs and two historic events of known RIs (see WARNING) is sufficient to conduct a valid analysis. | BK7: Two or more historic events of unknown RIs and two historic events of known RIs (see WARNING) is sufficient to conduct a valid analysis. | BL7: Two or more historic events of unknown RIs and two historic events of known RIs (see WARNING) is sufficient to conduct a valid analysis.
A8: California | G8: Houston-Baytown-Huntsville (TX) | H8: 17.69950445 | J8: cell link | L8: =IF(ISNUMBER('Analysis Results'!B23),1/'Analysis Results'!B23,0) -> 0 | M8: =IF(ISNUMBER('Analysis Results'!F23),1/'Analysis Results'!F23,0) -> 0 | O8: =IF(ISNUMBER('Damage Info'!B168),RANK('Damage Info'!B168,'Damage Info'!$B$161:$B$172),"") ->  | P8: =IF(ISNUMBER('Damage Info'!C168),RANK('Damage Info'!C168,'Damage Info'!$C$161:$C$172),"") ->  | Q8: =IF(ISNUMBER(O9),O8>O9,"") ->  | R8: =IF('Damage Info'!C168=0,TRUE,IF(ISNUMBER(P9),P8>P9,"")) ->  | W8: 3 | X8: Number of RIs exceeds number of damage events! | Y8: Number of RIs exceeds number of damage events! | Z8: Number of RIs exceeds number of damage events! | AA8: If all three historic damage event RIs are known, then input these events under Expected Damages! | AB8: None | AC8: None | AD8: None | AE8: None | AF8: None | AG8: None | AH8: None | AI8: None | AJ8: None | AK8: 3 | AL8: None | AM8: None | AN8: None | AO8: None | AP8: The number of historic damage events with known RIs is limited to the two events with the highest Total Historic Damages! | AQ8: The number of historic damage events with known RIs is limited to the two events with the highest Total Historic Damages! | AR8: The number of historic damage events with known RIs is limited to the two events with the highest Total Historic Damages! | AS8: The number of historic damage events with known RIs is limited to the two events with the highest Total Historic Damages! | AT8: The number of historic damage events with known RIs is limited to the two events with the highest Total Historic Damages! | AU8: The number of historic damage events with known RIs is limited to the two events with the highest Total Historic Damages! | AV8: The number of historic damage events with known RIs is limited to the two events with the highest Total Historic Damages! | AW8: The number of historic damage events with known RIs is limited to the two events with the highest Total Historic Damages! | AX8: The number of historic damage events with known RIs is limited to the two events with the highest Total Historic Damages! | AY8: 3 | AZ8: A minimum of one historic event of known RI or three historic events of unknown RI are needed to conduct a valid analysis. | BA8: A minimum of one historic event of known RI or three historic events of unknown RI are needed to conduct a valid analysis. | BB8: Two historic events of known RIs is sufficient to conduct a valid analysis. | BC8: One historic event of unknown RI and two historic events of known RIs (see WARNING) is sufficient to conduct a valid analysis. | BD8: Two historic events of unknown RIs and up to two historic events of known RIs (see WARNING) is sufficient to conduct a valid analysis. | BE8: Two or more historic events of unknown RIs and up to two historic events of known RIs (see WARNING) is sufficient to conduct a valid analysis. | BF8: Two or more historic events of unknown RIs and up to two historic events of known RIs (see WARNING) is sufficient to conduct a valid analysis. | BG8: Two or more historic events of unknown RIs and up to two historic events of known RIs (see WARNING) is sufficient to conduct a valid analysis. | BH8: Two or more historic events of unknown RIs and up to two historic events of known RIs (see WARNING) is sufficient to conduct a valid analysis. | BI8: Two or more historic events of unknown RIs and up to two historic events of known RIs (see WARNING) is sufficient to conduct a valid analysis. | BJ8: Two or more historic events of unknown RIs and up to two historic events of known RIs (see WARNING) is sufficient to conduct a valid analysis. | BK8: Two or more historic events of unknown RIs and up to two historic events of known RIs (see WARNING) is sufficient to conduct a valid analysis. | BL8: Two or more historic events of unknown RIs and up to two historic events of known RIs (see WARNING) is sufficient to conduct a valid analysis.
A9: Colorado | G9: Miami-Fort Lauderdale-Pompano Beach (FL) | H9: 15.03306755 | J9: 1 | L9: =IF(ISNUMBER('Analysis Results'!B24),1/'Analysis Results'!B24,0) -> 0 | M9: =IF(ISNUMBER('Analysis Results'!F24),1/'Analysis Results'!F24,0) -> 0 | O9: =IF(ISNUMBER('Damage Info'!B169),RANK('Damage Info'!B169,'Damage Info'!$B$161:$B$172),"") ->  | P9: =IF(ISNUMBER('Damage Info'!C169),RANK('Damage Info'!C169,'Damage Info'!$C$161:$C$172),"") ->  | Q9: =IF(ISNUMBER(O10),O9>O10,"") ->  | R9: =IF('Damage Info'!C169=0,TRUE,IF(ISNUMBER(P10),P9>P10,"")) ->  | W9: 4 | X9: Number of RIs exceeds number of damage events! | Y9: Number of RIs exceeds number of damage events! | Z9: Number of RIs exceeds number of damage events! | AA9: Number of RIs exceeds number of damage events! | AB9: If all four historic damage event RIs are known, then input these events under Expected Damages! | AC9: None | AD9: None | AE9: None | AF9: None | AG9: None | AH9: None | AI9: None | AJ9: None | AK9: 4 | AL9: None | AM9: None | AN9: None | AO9: None | AP9: None | AQ9: The number of historic damage events with known RIs is limited to the two events with the highest Total Historic Damages! | AR9: The number of historic damage events with known RIs is limited to the two events with the highest Total Historic Damages! | AS9: The number of historic damage events with known RIs is limited to the two events with the highest Total Historic Damages! | AT9: The number of historic damage events with known RIs is limited to the two events with the highest Total Historic Damages! | AU9: The number of historic damage events with known RIs is limited to the two events with the highest Total Historic Damages! | AV9: The number of historic damage events with known RIs is limited to the two events with the highest Total Historic Damages! | AW9: The number of historic damage events with known RIs is limited to the two events with the highest Total Historic Damages! | AX9: The number of historic damage events with known RIs is limited to the two events with the highest Total Historic Damages! | AY9: 4 | AZ9: A minimum of one historic event of known RI or three historic events of unknown RI are needed to conduct a valid analysis. | BA9: A minimum of one historic event of known RI or three historic events of unknown RI are needed to conduct a valid analysis. | BB9: Two historic events of known RIs is sufficient to conduct a valid analysis. | BC9: One historic event of unknown RI and two historic events of known RIs (see WARNING) is sufficient to conduct a valid analysis. | BD9: Two historic events of unknown RIs and up to two historic events of known RIs (see WARNING) is sufficient to conduct a valid analysis. | BE9: Two or more historic events of unknown RIs and up to two historic events of known RIs (see WARNING) is sufficient to conduct a valid analysis. | BF9: Two or more historic events of unknown RIs and up to two historic events of known RIs (see WARNING) is sufficient to conduct a valid analysis. | BG9: Two or more historic events of unknown RIs and up to two historic events of known RIs (see WARNING) is sufficient to conduct a valid analysis. | BH9: Two or more historic events of unknown RIs and up to two historic events of known RIs (see WARNING) is sufficient to conduct a valid analysis. | BI9: Two or more historic events of unknown RIs and up to two historic events of known RIs (see WARNING) is sufficient to conduct a valid analysis. | BJ9: Two or more historic events of unknown RIs and up to two historic events of known RIs (see WARNING) is sufficient to conduct a valid analysis. | BK9: Two or more historic events of unknown RIs and up to two historic events of known RIs (see WARNING) is sufficient to conduct a valid analysis. | BL9: Two or more historic events of unknown RIs and up to two historic events of known RIs (see WARNING) is sufficient to conduct a valid analysis.
A10: Connecticut | G10: Washington-Baltimore-NOVA (DC-MD-VA-WV) | H10: 19.52382831 | L10: =IF(ISNUMBER('Analysis Results'!B25),1/'Analysis Results'!B25,0) -> 0 | M10: =IF(ISNUMBER('Analysis Results'!F25),1/'Analysis Results'!F25,0) -> 0 | O10: =IF(ISNUMBER('Damage Info'!B170),RANK('Damage Info'!B170,'Damage Info'!$B$161:$B$172),"") ->  | P10: =IF(ISNUMBER('Damage Info'!C170),RANK('Damage Info'!C170,'Damage Info'!$C$161:$C$172),"") ->  | Q10: =IF(ISNUMBER(O11),O10>O11,"") ->  | R10: =IF('Damage Info'!C170=0,TRUE,IF(ISNUMBER(P11),P10>P11,"")) ->  | W10: 5 | X10: Number of RIs exceeds number of damage events! | Y10: Number of RIs exceeds number of damage events! | Z10: Number of RIs exceeds number of damage events! | AA10: Number of RIs exceeds number of damage events! | AB10: Number of RIs exceeds number of damage events! | AC10: If all five historic damage event RIs are known, then input these events under Expected Damages! | AD10: None | AE10: None | AF10: None | AG10: None | AH10: None | AI10: None | AJ10: None | AK10: 5 | AL10: None | AM10: None | AN10: None | AO10: None | AP10: None | AQ10: None | AR10: The number of historic damage events with known RIs is limited to the two events with the highest Total Historic Damages! | AS10: The number of historic damage events with known RIs is limited to the two events with the highest Total Historic Damages! | AT10: The number of historic damage events with known RIs is limited to the two events with the highest Total Historic Damages! | AU10: The number of historic damage events with known RIs is limited to the two events with the highest Total Historic Damages! | AV10: The number of historic damage events with known RIs is limited to the two events with the highest Total Historic Damages! | AW10: The number of historic damage events with known RIs is limited to the two events with the highest Total Historic Damages! | AX10: The number of historic damage events with known RIs is limited to the two events with the highest Total Historic Damages! | AY10: 5 | AZ10: A minimum of one historic event of known RI or three historic events of unknown RI are needed to conduct a valid analysis. | BA10: A minimum of one historic event of known RI or three historic events of unknown RI are needed to conduct a valid analysis. | BB10: Two historic events of known RIs is sufficient to conduct a valid analysis. | BC10: One historic event of unknown RI and two historic events of known RIs (see WARNING) is sufficient to conduct a valid analysis. | BD10: Two historic events of unknown RIs and up to two historic events of known RIs (see WARNING) is sufficient to conduct a valid analysis. | BE10: Two or more historic events of unknown RIs and up to two historic events of known RIs (see WARNING) is sufficient to conduct a valid analysis. | BF10: Two or more historic events of unknown RIs and up to two historic events of known RIs (see WARNING) is sufficient to conduct a valid analysis. | BG10: Two or more historic events of unknown RIs and up to two historic events of known RIs (see WARNING) is sufficient to conduct a valid analysis. | BH10: Two or more historic events of unknown RIs and up to two historic events of known RIs (see WARNING) is sufficient to conduct a valid analysis. | BI10: Two or more historic events of unknown RIs and up to two historic events of known RIs (see WARNING) is sufficient to conduct a valid analysis. | BJ10: Two or more historic events of unknown RIs and up to two historic events of known RIs (see WARNING) is sufficient to conduct a valid analysis. | BK10: Two or more historic events of unknown RIs and up to two historic events of known RIs (see WARNING) is sufficient to conduct a valid analysis. | BL10: Two or more historic events of unknown RIs and up to two historic events of known RIs (see WARNING) is sufficient to conduct a valid analysis.
A11: Delaware | G11: Chicago-Naperville-Michigan City (IL-IN-WI) | H11: 18.23868919 | L11: =IF(ISNUMBER('Analysis Results'!B26),1/'Analysis Results'!B26,0) -> 0 | M11: =IF(ISNUMBER('Analysis Results'!F26),1/'Analysis Results'!F26,0) -> 0 | O11: =IF(ISNUMBER('Damage Info'!B171),RANK('Damage Info'!B171,'Damage Info'!$B$161:$B$172),"") ->  | P11: =IF(ISNUMBER('Damage Info'!C171),RANK('Damage Info'!C171,'Damage Info'!$C$161:$C$172),"") ->  | Q11: =IF(ISNUMBER(O12),O11>O12,"") ->  | R11: =IF('Damage Info'!C171=0,TRUE,IF(ISNUMBER(P12),P11>P12,"")) ->  | W11: 6 | X11: Number of RIs exceeds number of damage events! | Y11: Number of RIs exceeds number of damage events! | Z11: Number of RIs exceeds number of damage events! | AA11: Number of RIs exceeds number of damage events! | AB11: Number of RIs exceeds number of damage events! | AC11: Number of RIs exceeds number of damage events! | AD11: If all six historic damage event RIs are known, then input these events under Expected Damages! | AE11: None | AF11: None | AG11: None | AH11: None | AI11: None | AJ11: None | AK11: 6 | AL11: None | AM11: None | AN11: None | AO11: None | AP11: None | AQ11: None | AR11: None | AS11: The number of historic damage events with known RIs is limited to the two events with the highest Total Historic Damages! | AT11: The number of historic damage events with known RIs is limited to the two events with the highest Total Historic Damages! | AU11: The number of historic damage events with known RIs is limited to the two events with the highest Total Historic Damages! | AV11: The number of historic damage events with known RIs is limited to the two events with the highest Total Historic Damages! | AW11: The number of historic damage events with known RIs is limited to the two events with the highest Total Historic Damages! | AX11: The number of historic damage events with known RIs is limited to the two events with the highest Total Historic Damages! | AY11: 6 | AZ11: A minimum of one historic event of known RI or three historic events of unknown RI are needed to conduct a valid analysis. | BA11: A minimum of one historic event of known RI or three historic events of unknown RI are needed to conduct a valid analysis. | BB11: Two historic events of known RIs is sufficient to conduct a valid analysis. | BC11: One historic event of unknown RI and two historic events of known RIs (see WARNING) is sufficient to conduct a valid analysis. | BD11: Two historic events of unknown RIs and up to two historic events of known RIs (see WARNING) is sufficient to conduct a valid analysis. | BE11: Two or more historic events of unknown RIs and up to two historic events of known RIs (see WARNING) is sufficient to conduct a valid analysis. | BF11: Two or more historic events of unknown RIs and up to two historic events of known RIs (see WARNING) is sufficient to conduct a valid analysis. | BG11: Two or more historic events of unknown RIs and up to two historic events of known RIs (see WARNING) is sufficient to conduct a valid analysis. | BH11: Two or more historic events of unknown RIs and up to two historic events of known RIs (see WARNING) is sufficient to conduct a valid analysis. | BI11: Two or more historic events of unknown RIs and up to two historic events of known RIs (see WARNING) is sufficient to conduct a valid analysis. | BJ11: Two or more historic events of unknown RIs and up to two historic events of known RIs (see WARNING) is sufficient to conduct a valid analysis. | BK11: Two or more historic events of unknown RIs and up to two historic events of known RIs (see WARNING) is sufficient to conduct a valid analysis. | BL11: Two or more historic events of unknown RIs and up to two historic events of known RIs (see WARNING) is sufficient to conduct a valid analysis.
A12: District of Columbia | G12: Detroit-Warren-Flint (MI) | H12: 17.22908713 | L12: =IF(ISNUMBER('Analysis Results'!B27),1/'Analysis Results'!B27,0) -> 0 | M12: =IF(ISNUMBER('Analysis Results'!F27),1/'Analysis Results'!F27,0) -> 0 | O12: =IF(ISNUMBER('Damage Info'!B172),RANK('Damage Info'!B172,'Damage Info'!$B$161:$B$172),"") ->  | P12: =IF(ISNUMBER('Damage Info'!C172),RANK('Damage Info'!C172,'Damage Info'!$C$161:$C$172),"") ->  | Q12: =IF(ISNUMBER(#REF!),O12>#REF!,"") ->  | R12: =IF('Damage Info'!C172=0,TRUE,IF(ISNUMBER(#REF!),P12>#REF!,"")) ->  | W12: 7 | X12: Number of RIs exceeds number of damage events! | Y12: Number of RIs exceeds number of damage events! | Z12: Number of RIs exceeds number of damage events! | AA12: Number of RIs exceeds number of damage events! | AB12: Number of RIs exceeds number of damage events! | AC12: Number of RIs exceeds number of damage events! | AD12: Number of RIs exceeds number of damage events! | AE12: If all seven historic damage event RIs are known, then input these events under Expected Damages! | AF12: None | AG12: None | AH12: None | AI12: None | AJ12: None | AK12: 7 | AL12: None | AM12: None | AN12: None | AO12: None | AP12: None | AQ12: None | AR12: None | AS12: None | AT12: The number of historic damage events with known RIs is limited to the two events with the highest Total Historic Damages! | AU12: The number of historic damage events with known RIs is limited to the two events with the highest Total Historic Damages! | AV12: The number of historic damage events with known RIs is limited to the two events with the highest Total Historic Damages! | AW12: The number of historic damage events with known RIs is limited to the two events with the highest Total Historic Damages! | AX12: The number of historic damage events with known RIs is limited to the two events with the highest Total Historic Damages! | AY12: 7 | AZ12: A minimum of one historic event of known RI or three historic events of unknown RI are needed to conduct a valid analysis. | BA12: A minimum of one historic event of known RI or three historic events of unknown RI are needed to conduct a valid analysis. | BB12: Two historic events of known RIs is sufficient to conduct a valid analysis. | BC12: One historic event of unknown RI and two historic events of known RIs (see WARNING) is sufficient to conduct a valid analysis. | BD12: Two historic events of unknown RIs and up to two historic events of known RIs (see WARNING) is sufficient to conduct a valid analysis. | BE12: Two or more historic events of unknown RIs and up to two historic events of known RIs (see WARNING) is sufficient to conduct a valid analysis. | BF12: Two or more historic events of unknown RIs and up to two historic events of known RIs (see WARNING) is sufficient to conduct a valid analysis. | BG12: Two or more historic events of unknown RIs and up to two historic events of known RIs (see WARNING) is sufficient to conduct a valid analysis. | BH12: Two or more historic events of unknown RIs and up to two historic events of known RIs (see WARNING) is sufficient to conduct a valid analysis. | BI12: Two or more historic events of unknown RIs and up to two historic events of known RIs (see WARNING) is sufficient to conduct a valid analysis. | BJ12: Two or more historic events of unknown RIs and up to two historic events of known RIs (see WARNING) is sufficient to conduct a valid analysis. | BK12: Two or more historic events of unknown RIs and up to two historic events of known RIs (see WARNING) is sufficient to conduct a valid analysis. | BL12: Two or more historic events of unknown RIs and up to two historic events of known RIs (see WARNING) is sufficient to conduct a valid analysis.
A13: Florida | G13: Minneapolis-St. Paul-St. Cloud (MN-WI) | H13: 18.46234202 | L13: =IF(ISNUMBER('Analysis Results'!B28),1/'Analysis Results'!B28,0) -> 0 | M13: =IF(ISNUMBER('Analysis Results'!F28),1/'Analysis Results'!F28,0) -> 0 | W13: 8 | X13: Number of RIs exceeds number of damage events! | Y13: Number of RIs exceeds number of damage events! | Z13: Number of RIs exceeds number of damage events! | AA13: Number of RIs exceeds number of damage events! | AB13: Number of RIs exceeds number of damage events! | AC13: Number of RIs exceeds number of damage events! | AD13: Number of RIs exceeds number of damage events! | AE13: Number of RIs exceeds number of damage events! | AF13: If all eight historic damage event RIs are known, then input these events under Expected Damages! | AG13: None | AH13: None | AI13: None | AJ13: None | AK13: 8 | AL13: None | AM13: None | AN13: None | AO13: None | AP13: None | AQ13: None | AR13: None | AS13: None | AT13: None | AU13: The number of historic damage events with known RIs is limited to the two events with the highest Total Historic Damages! | AV13: The number of historic damage events with known RIs is limited to the two events with the highest Total Historic Damages! | AW13: The number of historic damage events with known RIs is limited to the two events with the highest Total Historic Damages! | AX13: The number of historic damage events with known RIs is limited to the two events with the highest Total Historic Damages! | AY13: 8 | AZ13: A minimum of one historic event of known RI or three historic events of unknown RI are needed to conduct a valid analysis. | BA13: A minimum of one historic event of known RI or three historic events of unknown RI are needed to conduct a valid analysis. | BB13: Two historic events of known RIs is sufficient to conduct a valid analysis. | BC13: One historic event of unknown RI and two historic events of known RIs (see WARNING) is sufficient to conduct a valid analysis. | BD13: Two historic events of unknown RIs and up to two historic events of known RIs (see WARNING) is sufficient to conduct a valid analysis. | BE13: Two or more historic events of unknown RIs and up to two historic events of known RIs (see WARNING) is sufficient to conduct a valid analysis. | BF13: Two or more historic events of unknown RIs and up to two historic events of known RIs (see WARNING) is sufficient to conduct a valid analysis. | BG13: Two or more historic events of unknown RIs and up to two historic events of known RIs (see WARNING) is sufficient to conduct a valid analysis. | BH13: Two or more historic events of unknown RIs and up to two historic events of known RIs (see WARNING) is sufficient to conduct a valid analysis. | BI13: Two or more historic events of unknown RIs and up to two historic events of known RIs (see WARNING) is sufficient to conduct a valid analysis. | BJ13: Two or more historic events of unknown RIs and up to two historic events of known RIs (see WARNING) is sufficient to conduct a valid analysis. | BK13: Two or more historic events of unknown RIs and up to two historic events of known RIs (see WARNING) is sufficient to conduct a valid analysis. | BL13: Two or more historic events of unknown RIs and up to two historic events of known RIs (see WARNING) is sufficient to conduct a valid analysis.
A14: Georgia | G14: Los Angeles-Long Beach-Riverside (CA) | H14: 18.48271093 | L14: =IF(ISNUMBER('Analysis Results'!B29),1/'Analysis Results'!B29,0) -> 0 | M14: =IF(ISNUMBER('Analysis Results'!F29),1/'Analysis Results'!F29,0) -> 0 | W14: 9 | X14: Number of RIs exceeds number of damage events! | Y14: Number of RIs exceeds number of damage events! | Z14: Number of RIs exceeds number of damage events! | AA14: Number of RIs exceeds number of damage events! | AB14: Number of RIs exceeds number of damage events! | AC14: Number of RIs exceeds number of damage events! | AD14: Number of RIs exceeds number of damage events! | AE14: Number of RIs exceeds number of damage events! | AF14: Number of RIs exceeds number of damage events! | AG14: If all nine historic damage event RIs are known, then input these events under Expected Damages! | AH14: None | AI14: None | AJ14: None | AK14: 9 | AL14: None | AM14: None | AN14: None | AO14: None | AP14: None | AQ14: None | AR14: None | AS14: None | AT14: None | AU14: None | AV14: The number of historic damage events with known RIs is limited to the two events with the highest Total Historic Damages! | AW14: The number of historic damage events with known RIs is limited to the two events with the highest Total Historic Damages! | AX14: The number of historic damage events with known RIs is limited to the two events with the highest Total Historic Damages! | AY14: 9 | AZ14: A minimum of one historic event of known RI or three historic events of unknown RI are needed to conduct a valid analysis. | BA14: A minimum of one historic event of known RI or three historic events of unknown RI are needed to conduct a valid analysis. | BB14: Two historic events of known RIs is sufficient to conduct a valid analysis. | BC14: One historic event of unknown RI and two historic events of known RIs (see WARNING) is sufficient to conduct a valid analysis. | BD14: Two historic events of unknown RIs and up to two historic events of known RIs (see WARNING) is sufficient to conduct a valid analysis. | BE14: Two or more historic events of unknown RIs and up to two historic events of known RIs (see WARNING) is sufficient to conduct a valid analysis. | BF14: Two or more historic events of unknown RIs and up to two historic events of known RIs (see WARNING) is sufficient to conduct a valid analysis. | BG14: Two or more historic events of unknown RIs and up to two historic events of known RIs (see WARNING) is sufficient to conduct a valid analysis. | BH14: Two or more historic events of unknown RIs and up to two historic events of known RIs (see WARNING) is sufficient to conduct a valid analysis. | BI14: Two or more historic events of unknown RIs and up to two historic events of known RIs (see WARNING) is sufficient to conduct a valid analysis. | BJ14: Two or more historic events of unknown RIs and up to two historic events of known RIs (see WARNING) is sufficient to conduct a valid analysis. | BK14: Two or more historic events of unknown RIs and up to two historic events of known RIs (see WARNING) is sufficient to conduct a valid analysis. | BL14: Two or more historic events of unknown RIs and up to two historic events of known RIs (see WARNING) is sufficient to conduct a valid analysis.
A15: Guam | G15: Phoenix-Mesa-Scottsdale (AZ) | H15: 15.30856583 | W15: 10 | X15: Number of RIs exceeds number of damage events! | Y15: Number of RIs exceeds number of damage events! | Z15: Number of RIs exceeds number of damage events! | AA15: Number of RIs exceeds number of damage events! | AB15: Number of RIs exceeds number of damage events! | AC15: Number of RIs exceeds number of damage events! | AD15: Number of RIs exceeds number of damage events! | AE15: Number of RIs exceeds number of damage events! | AF15: Number of RIs exceeds number of damage events! | AG15: Number of RIs exceeds number of damage events! | AH15: If all ten historic damage event RIs are known, then input these events under Expected Damages! | AI15: None | AJ15: None | AK15: 10 | AL15: None | AM15: None | AN15: None | AO15: None | AP15: None | AQ15: None | AR15: None | AS15: None | AT15: None | AU15: None | AV15: None | AW15: The number of historic damage events with known RIs is limited to the two events with the highest Total Historic Damages! | AX15: The number of historic damage events with known RIs is limited to the two events with the highest Total Historic Damages! | AY15: 10 | AZ15: A minimum of one historic event of known RI or three historic events of unknown RI are needed to conduct a valid analysis. | BA15: A minimum of one historic event of known RI or three historic events of unknown RI are needed to conduct a valid analysis. | BB15: Two historic events of known RIs is sufficient to conduct a valid analysis. | BC15: One historic event of unknown RI and two historic events of known RIs (see WARNING) is sufficient to conduct a valid analysis. | BD15: Two historic events of unknown RIs and up to two historic events of known RIs (see WARNING) is sufficient to conduct a valid analysis. | BE15: Two or more historic events of unknown RIs and up to two historic events of known RIs (see WARNING) is sufficient to conduct a valid analysis. | BF15: Two or more historic events of unknown RIs and up to two historic events of known RIs (see WARNING) is sufficient to conduct a valid analysis. | BG15: Two or more historic events of unknown RIs and up to two historic events of known RIs (see WARNING) is sufficient to conduct a valid analysis. | BH15: Two or more historic events of unknown RIs and up to two historic events of known RIs (see WARNING) is sufficient to conduct a valid analysis. | BI15: Two or more historic events of unknown RIs and up to two historic events of known RIs (see WARNING) is sufficient to conduct a valid analysis. | BJ15: Two or more historic events of unknown RIs and up to two historic events of known RIs (see WARNING) is sufficient to conduct a valid analysis. | BK15: Two or more historic events of unknown RIs and up to two historic events of known RIs (see WARNING) is sufficient to conduct a valid analysis. | BL15: Two or more historic events of unknown RIs and up to two historic events of known RIs (see WARNING) is sufficient to conduct a valid analysis.
A16: Hawaii | G16: San Jose-San Francisco-Oakland (CA) | H16: 26.03168605 | W16: 11 | X16: Number of RIs exceeds number of damage events! | Y16: Number of RIs exceeds number of damage events! | Z16: Number of RIs exceeds number of damage events! | AA16: Number of RIs exceeds number of damage events! | AB16: Number of RIs exceeds number of damage events! | AC16: Number of RIs exceeds number of damage events! | AD16: Number of RIs exceeds number of damage events! | AE16: Number of RIs exceeds number of damage events! | AF16: Number of RIs exceeds number of damage events! | AG16: Number of RIs exceeds number of damage events! | AH16: Number of RIs exceeds number of damage events! | AI16: If all eleven historic damage event RIs are known, then input these events under Expected Damages! | AJ16: None | AK16: 11 | AL16: None | AM16: None | AN16: None | AO16: None | AP16: None | AQ16: None | AR16: None | AS16: None | AT16: None | AU16: None | AV16: None | AW16: None | AX16: The number of historic damage events with known RIs is limited to the two events with the highest Total Historic Damages! | AY16: 11 | AZ16: A minimum of one historic event of known RI or three historic events of unknown RI are needed to conduct a valid analysis. | BA16: A minimum of one historic event of known RI or three historic events of unknown RI are needed to conduct a valid analysis. | BB16: Two historic events of known RIs is sufficient to conduct a valid analysis. | BC16: One historic event of unknown RI and two historic events of known RIs (see WARNING) is sufficient to conduct a valid analysis. | BD16: Two historic events of unknown RIs and up to two historic events of known RIs (see WARNING) is sufficient to conduct a valid analysis. | BE16: Two or more historic events of unknown RIs and up to two historic events of known RIs (see WARNING) is sufficient to conduct a valid analysis. | BF16: Two or more historic events of unknown RIs and up to two historic events of known RIs (see WARNING) is sufficient to conduct a valid analysis. | BG16: Two or more historic events of unknown RIs and up to two historic events of known RIs (see WARNING) is sufficient to conduct a valid analysis. | BH16: Two or more historic events of unknown RIs and up to two historic events of known RIs (see WARNING) is sufficient to conduct a valid analysis. | BI16: Two or more historic events of unknown RIs and up to two historic events of known RIs (see WARNING) is sufficient to conduct a valid analysis. | BJ16: Two or more historic events of unknown RIs and up to two historic events of known RIs (see WARNING) is sufficient to conduct a valid analysis. | BK16: Two or more historic events of unknown RIs and up to two historic events of known RIs (see WARNING) is sufficient to conduct a valid analysis. | BL16: Two or more historic events of unknown RIs and up to two historic events of known RIs (see WARNING) is sufficient to conduct a valid analysis.
A17: Idaho | G17: Seattle-Tacoma-Olympia (WA) | H17: 19.39113043 | W17: 12 | X17: Number of RIs exceeds number of damage events! | Y17: Number of RIs exceeds number of damage events! | Z17: Number of RIs exceeds number of damage events! | AA17: Number of RIs exceeds number of damage events! | AB17: Number of RIs exceeds number of damage events! | AC17: Number of RIs exceeds number of damage events! | AD17: Number of RIs exceeds number of damage events! | AE17: Number of RIs exceeds number of damage events! | AF17: Number of RIs exceeds number of damage events! | AG17: Number of RIs exceeds number of damage events! | AH17: Number of RIs exceeds number of damage events! | AI17: Number of RIs exceeds number of damage events! | AJ17: If all twelve historic damage event RIs are known, then input these events under Expected Damages! | AK17: 12 | AL17: None | AM17: None | AN17: None | AO17: None | AP17: None | AQ17: None | AR17: None | AS17: None | AT17: None | AU17: None | AV17: None | AW17: None | AX17: None | AY17: 12 | AZ17: A minimum of one historic event of known RI or three historic events of unknown RI are needed to conduct a valid analysis. | BA17: A minimum of one historic event of known RI or three historic events of unknown RI are needed to conduct a valid analysis. | BB17: Two historic events of known RIs is sufficient to conduct a valid analysis. | BC17: One historic event of unknown RI and two historic events of known RIs (see WARNING) is sufficient to conduct a valid analysis. | BD17: Two historic events of unknown RIs and up to two historic events of known RIs (see WARNING) is sufficient to conduct a valid analysis. | BE17: Two or more historic events of unknown RIs and up to two historic events of known RIs (see WARNING) is sufficient to conduct a valid analysis. | BF17: Two or more historic events of unknown RIs and up to two historic events of known RIs (see WARNING) is sufficient to conduct a valid analysis. | BG17: Two or more historic events of unknown RIs and up to two historic events of known RIs (see WARNING) is sufficient to conduct a valid analysis. | BH17: Two or more historic events of unknown RIs and up to two historic events of known RIs (see WARNING) is sufficient to conduct a valid analysis. | BI17: Two or more historic events of unknown RIs and up to two historic events of known RIs (see WARNING) is sufficient to conduct a valid analysis. | BJ17: Two or more historic events of unknown RIs and up to two historic events of known RIs (see WARNING) is sufficient to conduct a valid analysis. | BK17: Two or more historic events of unknown RIs and up to two historic events of known RIs (see WARNING) is sufficient to conduct a valid analysis. | BL17: Two or more historic events of unknown RIs and up to two historic events of known RIs (see WARNING) is sufficient to conduct a valid analysis.
A18: Illinois | G18: User-Entered | H18: 0 | X18: =VLOOKUP($U$3,$W$5:$AJ$17,2) -> Insufficient number of historic damage events of known RIs to conduct a valid analysis! | Y18: =VLOOKUP($U$3,$W$5:$AJ$17,3) -> Insufficient number of historic damage events of known RIs to conduct a valid analysis! | Z18: =VLOOKUP($U$3,$W$5:$AJ$17,4) -> Insufficient number of historic damage events of known RIs to conduct a valid analysis! | AA18: =VLOOKUP($U$3,$W$5:$AJ$17,5) -> None | AB18: =VLOOKUP($U$3,$W$5:$AJ$17,6) -> None | AC18: =VLOOKUP($U$3,$W$5:$AJ$17,7) -> None | AD18: =VLOOKUP($U$3,$W$5:$AJ$17,8) -> None | AE18: =VLOOKUP($U$3,$W$5:$AJ$17,9) -> None | AF18: =VLOOKUP($U$3,$W$5:$AJ$17,10) -> None | AG18: =VLOOKUP($U$3,$W$5:$AJ$17,11) -> None | AH18: =VLOOKUP($U$3,$W$5:$AJ$17,12) -> None | AI18: =VLOOKUP($U$3,$W$5:$AJ$17,13) -> None | AJ18: =VLOOKUP($U$3,$W$5:$AJ$17,14) -> None | AL18: =VLOOKUP($U$3,$AK$5:$AX$17,2) -> None | AM18: =VLOOKUP($U$3,$AK$5:$AX$17,3) -> None | AN18: =VLOOKUP($U$3,$AK$5:$AX$17,4) -> None | AO18: =VLOOKUP($U$3,$AK$5:$AX$17,5) -> None | AP18: =VLOOKUP($U$3,$AK$5:$AX$17,6) -> None | AQ18: =VLOOKUP($U$3,$AK$5:$AX$17,7) -> None | AR18: =VLOOKUP($U$3,$AK$5:$AX$17,8) -> None | AS18: =VLOOKUP($U$3,$AK$5:$AX$17,9) -> None | AT18: =VLOOKUP($U$3,$AK$5:$AX$17,10) -> None | AU18: =VLOOKUP($U$3,$AK$5:$AX$17,11) -> None | AV18: =VLOOKUP($U$3,$AK$5:$AX$17,12) -> None | AW18: =VLOOKUP($U$3,$AK$5:$AX$17,13) -> None | AX18: =VLOOKUP($U$3,$AK$5:$AX$17,14) -> None | AZ18: =VLOOKUP($U$3,$AY$5:$BL$17,2) -> A minimum of one historic event of known RI or three historic events of unknown RI are needed to conduct a valid analysis. | BA18: =VLOOKUP($U$3,$AY$5:$BL$17,3) -> A minimum of one historic event of known RI or three historic events of unknown RI are needed to conduct a valid analysis. | BB18: =VLOOKUP($U$3,$AY$5:$BL$17,4) -> A minimum of one historic event of known RI or three historic events of unknown RI are needed to conduct a valid analysis. | BC18: =VLOOKUP($U$3,$AY$5:$BL$17,5) -> Three historic events of unknown RIs is sufficient to conduct a valid analysis. | BD18: =VLOOKUP($U$3,$AY$5:$BL$17,6) -> Three or more historic events of unknown RIs is sufficient to conduct a valid analysis. | BE18: =VLOOKUP($U$3,$AY$5:$BL$17,7) -> Three or more historic events of unknown RIs is sufficient to conduct a valid analysis. | BF18: =VLOOKUP($U$3,$AY$5:$BL$17,8) -> Three or more historic events of unknown RIs is sufficient to conduct a valid analysis. | BG18: =VLOOKUP($U$3,$AY$5:$BL$17,9) -> Three or more historic events of unknown RIs is sufficient to conduct a valid analysis. | BH18: =VLOOKUP($U$3,$AY$5:$BL$17,10) -> Three or more historic events of unknown RIs is sufficient to conduct a valid analysis. | BI18: =VLOOKUP($U$3,$AY$5:$BL$17,11) -> Three or more historic events of unknown RIs is sufficient to conduct a valid analysis. | BJ18: =VLOOKUP($U$3,$AY$5:$BL$17,12) -> Three or more historic events of unknown RIs is sufficient to conduct a valid analysis. | BK18: =VLOOKUP($U$3,$AY$5:$BL$17,13) -> Three or more historic events of unknown RIs is sufficient to conduct a valid analysis. | BL18: =VLOOKUP($U$3,$AY$5:$BL$17,14) -> Three or more historic events of unknown RIs is sufficient to conduct a valid analysis.
A19: Indiana
A20: Iowa
A21: Kansas
A22: Kentucky
A23: Louisiana
A24: Maine
A25: Maryland
A26: Massachusetts
A27: Michigan
A28: Minnesota
A29: Mississippi
A30: Missouri
A31: Montana
A32: Nebraska
A33: Nevada
A34: New Hampshire
A35: New Jersey
A36: New Mexico
A37: New York
A38: North Carolina
A39: North Dakota
A40: Northern Mariana Islands
A41: Ohio
A42: Oklahoma
A43: Oregon
A44: Pennsylvania
A45: Puerto Rico
A46: Rhode Island
A47: South Carolina
A48: South Dakota
A49: Tennessee
A50: Texas
A51: US Virgin Islands
A52: Utah
A53: Vermont
A54: Virginia
A55: Washington
A56: West Virginia
A57: Wisconsin
A58: Wyoming

Sheet Status (hidden)
A1: Current Status of the Project:
A2: =+'Project Info'!B51 -> Proposed Project Effectiveness (Years)*: | D2: =IF(ISNUMBER(Project_Effectiveness),Project_Effectiveness,"N/A") -> N/A
A3: =+'Analysis Results'!B38:C38 ->  | D3: =IF(ISNUMBER(BCR),BCR,"N/A") -> N/A

Sheet Freq Calculations (hidden)
A1: HISTORICAL DAMAGES FREQUENCY CALCULATOR
A2: This damage Frequency Calculator will assign Recurrence Intervals to historical damages. Both events with known and unknown recurrence interval may be used.
A3: All damage values are inflated to the Year of Analysis. Adjustments for high outliers and known frequency events are applied if needed.
A4: Project Information:
A5: INPUT | H5: Results
A6: Analysis Year (4 digit year) | B6: Year Built (4 digit year) | C6: Analysis Duration (years) | D6: Selected Analysis Duartion (years) | H6: Upper Limit for Inflated Damage Outlier | I6: Adjustment of Tr for outlier applied? | S6: Log Normal fit to data then adjusted to Total Probability | AA6: for graph | AC6: for LN graph
A7: =Analysis_Year -> 0 | B7: =Year_Built -> 0 | C7: =Analysis_Duration ->  | D7: =Selected_Analysis_Duration ->  | H7: =IF(ISNUMBER($BA$32),$BA$32,"") ->  | I7: =AT35 ->  | S7: mean ln | T7: st dev ln | U7: if only processed | V7: total P | AA7: If more than 9 percent of the annual peaks equal zero, then the 1.1-year flood equals zero;
A8: Historical Damage Data | H8: Recurrence Interval (Tr) | I8: Damages | S8: =AVERAGE(S10:S23) ->  | T8: =STDEV(S10:S23) ->  | U8: damage data is used | V8: Adjustment | AA8: if more than 1/3 of the peaks equal zero, then the 1.5-year flood equals zero.)
A9: Damages with Unknown Recurrence Interval | D9: Damages with Known Recurrence Interval | H9: (years) | I9: (dollars) | S9: ln damage | T9: LNormal | U9: exceedance P | V9: Tr (yrs) | AA9: 1 | AB9: 1 | AC9: 1 | AD9: 1
A10: Damage Year | C10: Damages inflated to analysis Year | D10: Damage Year | F10: Known Recurrence Interval | G10: Damages inflated to analysis Year | H10: =IF(ISNUMBER(BM35),ROUND(BM35,1),"") ->  | I10: =BN35 ->  | S10: =+IF(ISNUMBER(J35),LN(J35),"") ->  | T10: =IF(ISNUMBER(J35),LOGNORMDIST(J35,$S$8,$T$8),"") ->  | U10: =IF(ISNUMBER(J35),(1-(($D$31/$D$29)+$D$32*T10))*($D$29/($D$29+1)),"") ->  | V10: =IF(ISNUMBER(U10),1/U10,"") ->  | AA10: =+IF(ISNUMBER(H10),H10,AA9) -> 1 | AB10: 1 | AC10: =+IF(ISNUMBER(J35),J35,AC9) -> 1 | AD10: =+IF(ISNUMBER(V10),V10,AC9) -> 1
A11: (4 digit year) | C11: (dollars) | D11: (4 digit year) | F11: (years) | G11: (dollars) | I11: =BN36 ->  | S11: =+IF(ISNUMBER(J36),LN(J36),"") ->  | T11: =IF(ISNUMBER(J36),LOGNORMDIST(J36,$S$8,$T$8),"") ->  | U11: =IF(ISNUMBER(J36),(1-(($D$31/$D$29)+$D$32*T11))*($D$29/($D$29+1)),"") ->  | V11: =IF(ISNUMBER(U11),1/U11,"") ->  | AA11: 1 | AB11: 1 | AC11: =+IF(ISNUMBER(J36),J36,AC10) -> 1 | AD11: =+IF(ISNUMBER(V11),V11,AD10) -> 1
A12: =IF(ISNUMBER('Damage Info'!B129),'Damage Info'!B129,"") ->  | C12: =IF(ISNUMBER('Damage Info'!C129),'Damage Info'!C129,"") ->  | D12: =IF(ISNUMBER('Damage Info'!B146),'Damage Info'!B146,"") ->  | F12: =IF(AND(ISNUMBER('Damage Info'!B146),ISNUMBER('Damage Info'!C146)),'Damage Info'!C146,"") ->  | G12: =IF(ISNUMBER('Damage Info'!F157),'Damage Info'!F157,"") ->  | AA12: 1 | AB12: 1 | AC12: 1 | AD12: 1
A13: =IF(ISNUMBER('Damage Info'!B130),'Damage Info'!B130,"") ->  | C13: =IF(ISNUMBER('Damage Info'!C130),'Damage Info'!C130,"") ->  | D13: =IF(ISNUMBER('Damage Info'!B147),'Damage Info'!B147,"") ->  | F13: =IF(AND(ISNUMBER('Damage Info'!B147),ISNUMBER('Damage Info'!C147)),'Damage Info'!C147,"") ->  | G13: =IF(ISNUMBER('Damage Info'!F158),'Damage Info'!F158,"") ->  | AA13: 1 | AB13: 1 | AC13: 1 | AD13: 1
A14: =IF(ISNUMBER('Damage Info'!B131),'Damage Info'!B131,"") ->  | C14: =IF(ISNUMBER('Damage Info'!C131),'Damage Info'!C131,"") ->  | D14: User Notes: | AA14: 1 | AB14: 1 | AC14: 1 | AD14: 1
A15: =IF(ISNUMBER('Damage Info'!B132),'Damage Info'!B132,"") ->  | C15: =IF(ISNUMBER('Damage Info'!C132),'Damage Info'!C132,"") ->  | AA15: 1 | AB15: 1 | AC15: 1 | AD15: 1
A16: =IF(ISNUMBER('Damage Info'!B133),'Damage Info'!B133,"") ->  | C16: =IF(ISNUMBER('Damage Info'!C133),'Damage Info'!C133,"") ->  | AA16: 1 | AB16: 1 | AC16: 1 | AD16: 1
A17: =IF(ISNUMBER('Damage Info'!B134),'Damage Info'!B134,"") ->  | C17: =IF(ISNUMBER('Damage Info'!C134),'Damage Info'!C134,"") ->  | AA17: 1 | AB17: 1 | AC17: 1 | AD17: 1
A18: =IF(ISNUMBER('Damage Info'!B135),'Damage Info'!B135,"") ->  | C18: =IF(ISNUMBER('Damage Info'!C135),'Damage Info'!C135,"") ->  | AA18: 1 | AB18: 1 | AC18: 1 | AD18: 1
A19: =IF(ISNUMBER('Damage Info'!B136),'Damage Info'!B136,"") ->  | C19: =IF(ISNUMBER('Damage Info'!C136),'Damage Info'!C136,"") ->  | AA19: 1 | AB19: 1 | AC19: 1 | AD19: 1
A20: =IF(ISNUMBER('Damage Info'!B137),'Damage Info'!B137,"") ->  | C20: =IF(ISNUMBER('Damage Info'!C137),'Damage Info'!C137,"") ->  | AA20: 1 | AB20: 1 | AC20: 1 | AD20: 1
A21: =IF(ISNUMBER('Damage Info'!B138),'Damage Info'!B138,"") ->  | C21: =IF(ISNUMBER('Damage Info'!C138),'Damage Info'!C138,"") ->  | V21: =IF(ISNUMBER(U21),1/U21,"") ->  | AA21: 1 | AB21: 1 | AC21: 1 | AD21: 1
A22: =IF(ISNUMBER('Damage Info'!B139),'Damage Info'!B139,"") ->  | C22: =IF(ISNUMBER('Damage Info'!C139),'Damage Info'!C139,"") ->  | V22: =IF(ISNUMBER(U22),1/U22,"") ->  | AA22: 1 | AB22: 1 | AC22: 1 | AD22: 1
A23: =IF(ISNUMBER('Damage Info'!B140),'Damage Info'!B140,"") ->  | C23: =IF(ISNUMBER('Damage Info'!C140),'Damage Info'!C140,"") ->  | AA23: 1 | AB23: 1 | AC23: 1 | AD23: 1
A24: Warning/Error | B24: =IF(ISNUMBER(MODE($A$12:$A$23,$D$12:$D$13)),"You have repeated a damage year. Enter a given calendar year only once with the total damages for that year!","") -> 
A25: Messages: | B25: =IF(ISNUMBER(D12),IF(MIN($G$12:$G$13)<MAX($C$12:$C$23),"Inflated damage(s) with known RI must be larger than all inflated damages with unknown RI!",""),"") -> 
A28: Calcs
A29: Total No of analysis years | D29: =IF(ISNUMBER(D7),D7,C7) ->  | F29: min RI criteria for historic events
A30: Total No of years with damage | D30: =DCOUNT(C10:C23,C10,J31:J32) -> 0 | F30: (years) | J30: criteria | K30: Year Validation | AX30: Adjusted Tr changed from FEMA's version
A31: Total No of years without damage | D31: =D29-D30 ->  | F31: =+D29+1 ->  | J31: Damages inflated to analysis Year | AT31: Mean= | AU31: =AVERAGE(C35:C46) ->  | AV31: z(1-p): | AW31: =-NORMSINV(1-0.9) -> 1.281551566 | AX31: a: | AY31: =1-AW32^2/(2*($D$30-1)) -> 1 | AZ31: k1: | BA31: =(AW31+SQRT(AW31^2-AY31*AY32))/AY31 ->  | BC31: H, largest Tr= | BD31: =MAX($BE$35:$BE$36) -> 0
A32: Annual P having a damage | D32: =D30/D29 ->  | J32: >0 | K32: ">B3 | AP32: Total Probability Theorem adjusted for n+1 | AT32: St. Dev= | AU32: =STDEV(C35:C46) ->  | AV32: z(1-g): | AW32: =-NORMSINV(1-0.5) -> 0 | AX32: b: | AY32: =AW31^2-AW32^2/$D$30 ->  | AZ32: H-outlier limit= | BA32: =+AU31+BA31*AU32 ->  | BC32: Z, count= | BD32: =COUNT($BF$35:$BF$36) -> 0 | BE32: Weight= | BF32: =(BD31-$BD$32)/($D$30+$D$31) ->  | BG32: changed from FEMA's version
A33: Damage Inflation and Initial Ranking of Inflated Damages | I33: Initial sortin in Ascending Order | O33: First Adjustment for grouping | U33: Second Adjustment for grouping | AB33: Third Adjustment for grouping | AI33: Fourth Adjustment for grouping | AP33: Adjustment to Conditional Probability | AT33: Adjustment for outlier (only the largest inflated damage) | AY33: Sorting in Ascenting Tr order | BC33: Adjustment to Damages with Known Recurrence Interval | BL33: Sorting in Ascenting Tr order
A34: order entered | B34: Year | C34: Inflated Total damage | D34: Rank in list | H34: Total damage | I34: Rank | J34: Ranked Damage | K34: P Total period | L34: Tr Total period | M34: P damage only | N34: Tr damage only | O34: Ratio of sequential damages (%) | P34: log-Avg. rank if diff<10% | Q34: log-Avg. damage if diff<10% | R34: Rank in list | U34: Rank after First Grouping | V34: Ratio of sequential damages (%) | W34: log-Avg. rank if diff<10% | X34: log-Avg. damage if diff<10% | Y34: Rank in list | AB34: Rank after Second Grouping | AC34: Ratio of sequential damages (%) | AD34: log-Avg. rank if diff<10% | AE34: log-Avg. damage if diff<10% | AF34: Rank in list | AI34: Rank after Third Grouping | AJ34: Ratio of sequential damages (%) | AK34: log-Avg. rank if diff<10% | AL34: log-Avg. damage if diff<10% | AM34: Rank in list | AP34: P damage only | AQ34: Tr damage only | AR34: P Adjusted to conditional P | AS34: Tr adjusted to C.P. & grouping | AT34: Is max damage an outlier? | AU34: Exp Damage by LN | AV34: FTEST | AX34: Adjusted Tr | AY34: Rank of ordered Trs | AZ34: Desired Ascenting Tr order | BA34: ascending Trs | BB34: ascending damages | BC34: Damage Year | BD34: Total damage | BE34: Assigned Recurrence Interval | BF34: Inflated damage | BG34: new rank | BH34: Adjusted Tr | BI34: Rank in group | BJ34: Desired Ascenting Tr order | BK34: All damages not sorted | BL34: Rank in group | BM34: ascending Trs | BN34: ascending damages
A35: 1 | B35: =IF(A12>0,A12,"") ->  | C35: =IF(ISNUMBER(C12),C12,"") ->  | D35: =IF(ISNUMBER(C35),RANK(C35,$C$35:$C$46,0),"") ->  | H35: =C35 ->  | I35: 1 | J35: =IF(ISNUMBER(C35),INDEX($C$35:$C$46,MATCH(I35,$D$35:$D$46,0),1),"") ->  | K35: =IF(ISNUMBER(J35),I35/($D$29+1),"") ->  | L35: =IF(ISNUMBER(K35),1/K35,"") ->  | M35: =IF(ISNUMBER(J35),I35/($D$30+1),"") ->  | N35: =IF(ISNUMBER(M35),1/M35,"") ->  | O35: =IF(ISNUMBER(J36),100*(J35-J36)/J35,"") ->  | P35: =IF(O35<10,EXP(0.5*(LN(I35)+LN(I36))),I35) -> 1 | Q35: =IF(ISNUMBER(P35),IF(P35>I35,EXP(0.5*(LN(J35)+LN(J36))),J35),"") ->  | R35: =IF(ISNUMBER(Q35),RANK(Q35,$Q$35:$Q$46,0),"") ->  | S35: =+Q35 ->  | T35: =+INDEX($Q$35:$Q$46,MATCH(I35,$R$35:$R$46,0),1) ->  | U35: =+INDEX($P$35:$P$46,MATCH(I35,$R$35:$R$46,0),1) ->  | V35: =IF(ISNUMBER(T36),100*(T35-T36)/T35,"") ->  | W35: =IF(V35<10,EXP(0.5*(LN(U35)+LN(U36))),U35) ->  | X35: =IF(ISNUMBER(W35),IF(W35>U35,EXP(0.5*(LN(T35)+LN(T36))),T35),"") ->  | Y35: =IF(ISNUMBER(X35),RANK(X35,$X$35:$X$46,0),"") ->  | Z35: =+X35 ->  | AA35: =+INDEX($X$35:$X$46,MATCH(I35,$Y$35:$Y$46,0),1) ->  | AB35: =+INDEX($W$35:$W$46,MATCH(I35,$Y$35:$Y$46,0),1) ->  | AC35: =IF(ISNUMBER(AA36),100*(AA35-AA36)/AA35,"") ->  | AD35: =IF(AC35<10,EXP(0.5*(LN(AB35)+LN(AB36))),AB35) ->  | AE35: =IF(ISNUMBER(AD35),IF(AD35>AB35,EXP(0.5*(LN(AA35)+LN(AA36))),AA35),"") ->  | AF35: =IF(ISNUMBER(AE35),RANK(AE35,$AE$35:$AE$46,0),"") ->  | AG35: =+AE35 ->  | AH35: =+INDEX($AE$35:$AE$46,MATCH(I35,$AF$35:$AF$46,0),1) ->  | AI35: =+INDEX($AD$35:$AD$46,MATCH(I35,$AF$35:$AF$46,0),1) ->  | AJ35: =IF(ISNUMBER(AH36),100*(AH35-AH36)/AH35,"") ->  | AK35: =IF(AJ35<10,EXP(0.5*(LN(AI35)+LN(AI36))),AI35) ->  | AL35: =IF(ISNUMBER(AK35),IF(AK35>AI35,EXP(0.5*(LN(AH35)+LN(AH36))),AH35),"") ->  | AM35: =IF(ISNUMBER(AL35),RANK(AL35,$AL$35:$AL$46,0),"") ->  | AN35: =+AL35 ->  | AO35: =+INDEX($AL$35:$AL$46,MATCH(I35,$AM$35:$AM$46,0),1) ->  | AP35: =IF(ISNUMBER(AL35),AK35/($D$30),"") ->  | AQ35: =IF(ISNUMBER(AP35),1/AP35,"") ->  | AR35: =IF(ISNUMBER(AL35),(1-(($D$31/$D$29)+$D$32*(1-AP35)))*($D$29/($D$29+1)),"") ->  | AS35: =IF(ISNUMBER(AR35),1/AR35,"") ->  | AT35: =IF(ISNUMBER($AO$35),IF($AO$35>$BA$32,"Yes","No"),"") ->  | AU35: =IF(ISNUMBER(J35),LOGINV(1-M35,$S$8,$T$8),"") ->  | AV35: =FTEST($J$35:$J$46,$AU$35:$AU$46) ->  | AX35: =IF(COUNT(C35:C46)=1,AS35,IF($AO$35>$BA$32,MAX(AS35,(1-$AV$35)*AS35+$AV$35*MAX($V$10:$V$23)),AS35)) ->  | AY35: =IF(ISNUMBER(AX35),RANK(AX35,$AX$35:$AX$46,1),"") ->  | AZ35: 1 | BA35: =IF(AZ35<=MAX($AY$35:$AY$46),INDEX($AX$35:$AY$46,MATCH(AZ35,$AY$35:$AY$46,0),1),"") ->  | BB35: =IF(AZ35<=MAX($AY$35:$AY$46),INDEX($AN$35:$AY$46,MATCH(BA35,$AX$35:$AX$46,0),1),"") ->  | BC35: =+IF(ISNUMBER(D12),D12,"") ->  | BG35: =IF(ISNUMBER(BF35),RANK(BF35,$BF$35:$BF$36),"") ->  | BH35: =IF(BG35=1,MAX($BE$35:$BE$36),IF(ISNUMBER(BF35),MIN($BE$35:$BE$36),"")) ->  | BI35: =IF(ISNUMBER(BG35),RANK(BG35,$BG$35:$BG$48),"") ->  | BJ35: 1 | BK35: =+BF35 ->  | BL35: =IF(ISNUMBER(BG35),RANK(BG35,$BG$35:$BG$48),"") ->  | BM35: =IF(BJ35<=MAX($BI$35:$BI$48),INDEX($BH$35:$BI$48,MATCH(BJ35,$BI$35:$BI$48,0),1),"") ->  | BN35: =IF(BJ35<=MAX($BL$35:$BL$48),INDEX($BK$35:$BL$48,MATCH(BJ35,$BL$35:$BL$48,0),1),"") -> 
A36: 2 | C36: =IF(ISNUMBER(C13),C13,"") ->  | H36: =C36 ->  | I36: 2 | L36: =IF(ISNUMBER(K36),1/K36,"") ->  | O36: =IF(ISNUMBER(J37),100*(J36-J37)/J36,"") ->  | P36: =IF(O36<10,EXP(0.5*(LN(I36)+LN(I37))),IF(O35<10,"",I36)) -> 2 | Q36: =IF(ISNUMBER(P36),IF(P36>I36,EXP(0.5*(LN(J36)+LN(J37))),J36),"") ->  | S36: =+Q36 ->  | V36: =IF(ISNUMBER(T37),100*(T36-T37)/T36,"") ->  | W36: =IF(V36<10,EXP(0.5*(LN(U36)+LN(U37))),IF(V35<10,"",U36)) ->  | X36: =IF(ISNUMBER(W36),IF(W36>U36,EXP(0.5*(LN(T36)+LN(T37))),T36),"") ->  | Z36: =+X36 ->  | AC36: =IF(ISNUMBER(AA37),100*(AA36-AA37)/AA36,"") ->  | AD36: =IF(AC36<10,EXP(0.5*(LN(AB36)+LN(AB37))),IF(AC35<10,"",AB36)) ->  | AE36: =IF(ISNUMBER(AD36),IF(AD36>AB36,EXP(0.5*(LN(AA36)+LN(AA37))),AA36),"") ->  | AG36: =+AE36 ->  | AI36: =+INDEX($AD$35:$AD$46,MATCH(I36,$AF$35:$AF$46,0),1) ->  | AJ36: =IF(ISNUMBER(AH37),100*(AH36-AH37)/AH36,"") ->  | AK36: =IF(AJ36<10,EXP(0.5*(LN(AI36)+LN(AI37))),IF(AJ35<10,"",AI36)) ->  | AL36: =IF(ISNUMBER(AK36),IF(AK36>AI36,EXP(0.5*(LN(AH36)+LN(AH37))),AH36),"") ->  | AM36: =IF(ISNUMBER(AL36),RANK(AL36,$AL$35:$AL$46,0),"") ->  | AN36: =+AL36 ->  | AO36: =+INDEX($AL$35:$AL$46,MATCH(I36,$AM$35:$AM$46,0),1) ->  | AP36: =IF(ISNUMBER(AL36),AK36/($D$30),"") ->  | AR36: =IF(ISNUMBER(AL36),(1-(($D$31/$D$29)+$D$32*(1-AP36)))*($D$29/($D$29+1)),"") ->  | AS36: =IF(ISNUMBER(AR36),1/AR36,"") ->  | AX36: =+AS36 ->  | AY36: =IF(ISNUMBER(AX36),RANK(AX36,$AX$35:$AX$46,1),"") ->  | AZ36: 2 | BA36: =IF(AZ36<=MAX($AY$35:$AY$46),INDEX($AX$35:$AY$46,MATCH(AZ36,$AY$35:$AY$46,0),1),"") ->  | BB36: =IF(AZ36<=MAX($AY$35:$AY$46),INDEX($AN$35:$AY$46,MATCH(BA36,$AX$35:$AX$46,0),1),"") ->  | BG36: =IF(ISNUMBER(BF36),RANK(BF36,$BF$35:$BF$36),"") ->  | BH36: =IF(BG36=1,MAX($BE$35:$BE$36),IF(ISNUMBER(BF36),MIN($BE$35:$BE$36),"")) ->  | BJ36: 2 | BK36: =+BF36 ->  | BL36: =IF(ISNUMBER(BG36),RANK(BG36,$BG$35:$BG$48),"") ->  | BM36: =IF(BJ36<=MAX($BI$35:$BI$48),INDEX($BH$35:$BI$48,MATCH(BJ36,$BI$35:$BI$48,0),1),"") ->  | BN36: =IF(BJ36<=MAX($BL$35:$BL$48),INDEX($BK$35:$BL$48,MATCH(BJ36,$BL$35:$BL$48,0),1),"") -> 
A37: 3 | I37: 3 | P37: =IF(O37<10,EXP(0.5*(LN(I37)+LN(I38))),IF(O36<10,"",I37)) -> 3 | W37: =IF(V37<10,EXP(0.5*(LN(U37)+LN(U38))),IF(V36<10,"",U37)) ->  | AD37: =IF(AC37<10,EXP(0.5*(LN(AB37)+LN(AB38))),IF(AC36<10,"",AB37)) ->  | AI37: =+INDEX($AD$35:$AD$46,MATCH(I37,$AF$35:$AF$46,0),1) ->  | AK37: =IF(AJ37<10,EXP(0.5*(LN(AI37)+LN(AI38))),IF(AJ36<10,"",AI37)) ->  | AX37: =+AS37 ->  | AZ37: 3 | BE37: next | BF37: =IF(ISNUMBER(BA35),IF(RANK(BA35,$BA$35:$BA$46,0)=1,IF($AX$35>$AS$35,$AS$35/$AX$35,RANK(BA35,$BA$35:$BA$46,0)),RANK(BA35,$BA$35:$BA$46,0)),"") ->  | BG37: =IF(ISNUMBER(BA35),IF(ISNUMBER($BF$35),IF(ISNUMBER(RANK(BA35,$BA$35:$BA$46,0)),$BF$32*(BF37+$BD$32)-($BF$32-1)*($BD$32+0.5),""),RANK(BA35,$BA$35:$BA$46,0)),"") ->  | BH37: =IF(ISNUMBER($BF$35),IF(ISNUMBER(BG37),($BD$31+1)/BG37,""),BA35) ->  | BJ37: 3 | BK37: =+BB35 -> 
A38: 4 | I38: 4 | P38: 4 | AZ38: 4 | BE38: column | BF38: =IF(ISNUMBER(BA36),IF(RANK(BA36,$BA$35:$BA$46,0)=1,IF($AX$35>$AS$35,$AS$35/$AX$35,RANK(BA36,$BA$35:$BA$46,0)),RANK(BA36,$BA$35:$BA$46,0)),"") ->  | BG38: =IF(ISNUMBER(BA36),IF(ISNUMBER($BF$35),IF(ISNUMBER(RANK(BA36,$BA$35:$BA$46,0)),$BF$32*(BF38+$BD$32)-($BF$32-1)*($BD$32+0.5),""),RANK(BA36,$BA$35:$BA$46,0)),"") ->  | BH38: =IF(ISNUMBER($BF$35),IF(ISNUMBER(BG38),($BD$31+1)/BG38,""),BA36) ->  | BJ38: 4 | BK38: =+BB36 -> 
A39: 5 | I39: 5 | P39: 5 | AZ39: 5 | BE39: is revised | BJ39: 5
A40: 6 | I40: 6 | P40: 6 | AZ40: 6 | BE40: ranks if | BJ40: 6
A41: 7 | I41: 7 | P41: 7 | AZ41: 7 | BE41: outlier | BJ41: 7
A42: 8 | I42: 8 | P42: 8 | AZ42: 8 | BE42: adjustment | BJ42: 8
A43: 9 | I43: 9 | P43: 9 | AZ43: 9 | BE43: has | BJ43: 9
A44: 10 | I44: 10 | P44: 10 | AZ44: 10 | BE44: happened | BJ44: 10
A45: 11 | I45: 11 | P45: 11 | AZ45: 11 | BJ45: 11
A46: 12 | I46: 12 | O46: =IF(ISNUMBER(#REF!),100*(J46-#REF!)/J46,"") ->  | P46: =IF(O46<10,EXP(0.5*(LN(I46)+LN(#REF!))),IF(O45<10,"",I46)) -> 12 | Q46: =IF(ISNUMBER(P46),IF(P46>I46,EXP(0.5*(LN(J46)+LN(#REF!))),J46),"") ->  | V46: =IF(ISNUMBER(#REF!),100*(T46-#REF!)/T46,"") ->  | W46: =IF(V46<10,EXP(0.5*(LN(U46)+LN(#REF!))),IF(V45<10,"",U46)) ->  | X46: =IF(ISNUMBER(W46),IF(W46>U46,EXP(0.5*(LN(T46)+LN(#REF!))),T46),"") ->  | AC46: =IF(ISNUMBER(#REF!),100*(AA46-#REF!)/AA46,"") ->  | AD46: =IF(AC46<10,EXP(0.5*(LN(AB46)+LN(#REF!))),IF(AC45<10,"",AB46)) ->  | AE46: =IF(ISNUMBER(AD46),IF(AD46>AB46,EXP(0.5*(LN(AA46)+LN(#REF!))),AA46),"") ->  | AJ46: =IF(ISNUMBER(#REF!),100*(AH46-#REF!)/AH46,"") ->  | AK46: =IF(AJ46<10,EXP(0.5*(LN(AI46)+LN(#REF!))),IF(AJ45<10,"",AI46)) ->  | AL46: =IF(ISNUMBER(AK46),IF(AK46>AI46,EXP(0.5*(LN(AH46)+LN(#REF!))),AH46),"") ->  | AZ46: 12 | BJ46: 12
BJ47: 13
BJ48: 14
F51: ENR used for years after 1908
E53: Year | F53: Construction Cost (ENR)
E54: 1908 | F54: 0.01199092645
E55: 1909 | F55: 0.01124921966
E56: 1910 | F56: 0.01186730866
E57: 1911 | F57: 0.01149645526
E58: 1912 | F58: 0.01124921966
E59: 1913 | F59: 0.01236177985
E60: 1914 | F60: 0.01100198407
E61: 1915 | F61: 0.01149645526
E62: 1916 | F62: 0.0160703138
E63: 1917 | F63: 0.02237482153
E64: 1918 | F64: 0.02336376391
E65: 1919 | F65: 0.0244763241
E66: 1920 | F66: 0.03102806742
E67: 1921 | F67: 0.0249707953
E68: 1922 | F68: 0.02150949694
E69: 1923 | F69: 0.02645420888
E70: 1924 | F70: 0.02657782668
E71: 1925 | F71: 0.02558888429
E72: 1926 | F72: 0.02571250209
E73: 1927 | F73: 0.02546526649
E74: 1928 | F74: 0.02558888429
E75: 1929 | F75: 0.02558888429
E76: 1930 | F76: 0.02509441309
E77: 1931 | F77: 0.02237482153
E78: 1932 | F78: 0.01940799436
E79: 1933 | F79: 0.02101502574
E80: 1934 | F80: 0.0244763241
E81: 1935 | F81: 0.0242290885
E82: 1936 | F82: 0.02546526649
E83: 1937 | F83: 0.02905018265
E84: 1938 | F84: 0.02917380044
E85: 1939 | F85: 0.02917380044
E86: 1940 | F86: 0.02991550723
E87: 1941 | F87: 0.03189339201
E88: 1942 | F88: 0.03411851238
E89: 1943 | F89: 0.03584916156
E90: 1944 | F90: 0.03696172175
E91: 1945 | F91: 0.03807428194
E92: 1946 | F92: 0.04277175828
E93: 1947 | F93: 0.05105415078
E94: 1948 | F94: 0.0569878051
E95: 1949 | F95: 0.05896568988
E96: 1950 | F96: 0.06304507723
E97: 1951 | F97: 0.06712446458
E98: 1952 | F98: 0.07033852734
E99: 1953 | F99: 0.07417067909
E100: 1954 | F100: 0.07763197745
E101: 1955 | F101: 0.081587747
E102: 1956 | F102: 0.08554351656
E103: 1957 | F103: 0.08949928611
E104: 1958 | F104: 0.09382590905
E105: 1959 | F105: 0.0985233854
E106: 1960 | F106: 0.101861066
E107: 1961 | F107: 0.1047042753
E108: 1962 | F108: 0.1077947203
E109: 1963 | F109: 0.1113796364
E110: 1964 | F110: 0.1157062594
E111: 1965 | F111: 0.1200328823
E112: 1966 | F112: 0.1259665367
E113: 1967 | F113: 0.1327655156
E114: 1968 | F114: 0.1427785573
E115: 1969 | F115: 0.1568709863
E116: 1970 | F116: 0.1707161797
E117: 1971 | F117: 0.1954397394
E118: 1972 | F118: 0.2167020008
E119: 1973 | F119: 0.2342557281
E120: 1974 | F120: 0.249707953
E121: 1975 | F121: 0.2734425703
E122: 1976 | F122: 0.2968063342
E123: 1977 | F123: 0.3184394489
E124: 1978 | F124: 0.3431630086
E125: 1979 | F125: 0.3712242489
E126: 1980 | F126: 0.4001508137
E127: 1981 | F127: 0.4369889177
E128: 1982 | F128: 0.4728380792
E129: 1983 | F129: 0.5026299687
E130: 1984 | F130: 0.5125193925
E131: 1985 | F131: 0.5185766647
E132: 1986 | F132: 0.5309384445
E133: 1987 | F133: 0.5446600201
E134: 1988 | F134: 0.5586288314
E135: 1989 | F135: 0.57049614
E136: 1990 | F136: 0.5849594225
E137: 1991 | F137: 0.5976920557
E138: 1992 | F138: 0.6162347255
E139: 1993 | F139: 0.6440487301
E140: 1994 | F140: 0.6685250542
E141: 1995 | F141: 0.6763129755
E142: 1996 | F142: 0.6947320275
E143: 1997 | F143: 0.720197294
E144: 1998 | F144: 0.7318173671
E145: 1999 | F145: 0.7490002411
E146: 2000 | F146: 0.7690263244
E147: 2001 | F147: 0.7829951356
E148: 2002 | F148: 0.8082131665
E149: 2003 | F149: 0.8275766585
E150: 2004 | F150: 0.8795270383
E151: 2005 | F151: 0.9204556552
E152: 2006 | F152: 0.9750502197
E153: 2007 | F153: 1
E154: 2008 | F154: 1.057055795
E155: 2009 | F155: 1.068181397
E156: 2010 | F156: 1.106626532
E157: 2011 | F157: 1.133822448
E158: 2012 | F158: 1.163521624
E159: 2013 | F159: 1.195136876
E160: 2014 | F160: 1.228266446
E161: 2015 | F161: 1.25496789
E162: 2016 | F162: 1.301695418 | G162: 2008 to 2016 value from ENR website
E163: 2017 | F163: =+F162+(F162-F161) -> 1.348422946 | G163: Value assumed same as 2016
E164: 2018 | F164: =+F163+(F163-F162) -> 1.395150474 | G164: Value assumed same as 2016

Sheet RI Estimator (hidden)
B2: Hazard Mitigation Cost Effectiveness Tool
B4: Coastal Flooding Recurrence Interval (R.I.) Estimator for Hazard Mitigation Cost Effectiveness Tool
B7: Note: Hover your cursor over cells with red triangles in the top-right corner to show guidance notes for that cell. Guidance notes provide additional information about values that should be entered into cells. For general information about this tool and references please hover over the title box above.
B8: Section I - Agency and Project Information | I8: Tools
B9: Agency: | C9: =IF(ISBLANK('Project Info'!$C$38),"",'Project Info'!$C$38) -> 
B10: Project Name: | C10: =IF(ISBLANK('Project Info'!$C$43),"",'Project Info'!$C$43) -> 
B11: Analysis Date: | C11: =IF(ISBLANK('Project Info'!$G$44),"",'Project Info'!$G$44) -> 
B12: Section II - Coastal Flood Recurrence Interval-Elevations Input
B13: BFE, (ft):
B14: Recurrence Interval (years) | C14: Stillwater Elevation (ft) | D14: Default Flood Elevation Including Waveheight (ft) | E14: User-Entered Flood Elevation Including Waveheight (ft) | F14: Flood Elevation Including Waveheight (ft)
B15: 10 | D15: =IF(ISNUMBER(C15),IF(ISBLANK($C$13),ROUND(C15*1.4,1),ROUND(C15*($C$13/$C$17),2)),"") ->  | F15: =IF(ISBLANK(E15),IF(ISBLANK(D15),"",D15),ROUND(E15,2)) -> 
B16: 50 | D16: =IF(ISNUMBER(C16),IF(ISBLANK($C$13),ROUND(C16*1.4,1),ROUND(C16*($C$13/$C$17),2)),"") ->  | F16: =IF(ISBLANK(E16),IF(ISBLANK(D16),"",D16),ROUND(E16,2)) -> 
B17: 100 | D17: =IF(ISNUMBER(C17),IF(ISBLANK($C$13),ROUND(C17*1.4,1),ROUND(C17*($C$13/$C$17),2)),"") ->  | F17: =IF(ISBLANK(E17),IF(ISBLANK(D17),"",D17),ROUND(E17,2)) -> 
B18: 500 | D18: =IF(ISNUMBER(C18),IF(ISBLANK($C$13),ROUND(C18*1.4,1),ROUND(C18*($C$13/$C$17),2)),"") ->  | F18: =IF(ISBLANK(E18),IF(ISBLANK(D18),"",D18),ROUND(E18,2)) -> 
B19: Source/ Documentation of Input Data:
B20: Section III (Optional) – Adjustment of Flood Elevations for Sea Level Rise (SLR)
B21: Project Useful Life (Years): | C21: =IF(ISBLANK('Project Info'!Project_Useful_Life),"",'Project Info'!Project_Useful_Life) ->  | D21: Analysis Year: | E21: =IF(ISNUMBER(Analysis_Year),Analysis_Year,"") ->  | F21: Last SLR Year: | G21: =IF(ISBLANK('Project Info'!Project_Useful_Life),"",E21+C21) -> 
B22: Automatic Elevation of SLR (Select nearby NOAA Gauge)
B23: Click to Select nearby NOAA Gauge: | C23: This Option Not Used | E23: =IF(Calculations!$H$8=1,"Sea Level Rise is not considered for this analysis", IF(Calculations!$I$12<0,"Sea Level Rise for the selected station is negative and will not be used in calculations of recurrence interval",CONCATENATE("Linear SLR projected for the next ",Project_Useful__Life__Years," years is ",Calculations!$I$11," ft, but the rise by equiv. year in ",Calculations!$I$15," years after project starts is ",Calculations!$I$16," ft and the equivalent rise in 100-year flood elev. is ",Calculations!$I$17," ft."))) -> Sea Level Rise is not considered for this analysis
B24: Recurrence Interval (years) | C24: Equivalent SLR to Add (ft) | D24: Equivalent Flood Elevation Including Wave Height & SLR (ft)
B25: 10 | C25: =IF(ISNUMBER(D25),D25-F15,"") ->  | D25: =IF(Calculations!$H$8=1,"",IF(Calculations!$I$12<0,F15,Calculations!F137* (Calculations!D137-LN( LN(B25/(B25-1)) ) * Calculations!E137))) -> 
B26: 50 | C26: =IF(ISNUMBER(D26),D26-F16,"") ->  | D26: =IF(Calculations!$H$8=1,"",IF(Calculations!$I$12<0,F16,Calculations!F138* (Calculations!D138-LN( LN(B26/(B26-1)) ) * Calculations!E138))) -> 
B27: 100 | C27: =IF(ISNUMBER(D27),D27-F17,"") ->  | D27: =IF(Calculations!$H$8=1,"",IF(Calculations!$I$12<0,F17,Calculations!F139* (Calculations!D139-LN( LN(B27/(B27-1)) ) * Calculations!E139))) -> 
B28: 500 | C28: =IF(ISNUMBER(D28),D28-F18,"") ->  | D28: =IF(Calculations!$H$8=1,"",IF(Calculations!$I$12<0,F18,Calculations!F140* (Calculations!D140-LN( LN(B28/(B28-1)) ) * Calculations!E140))) -> 
B29: Section IV - Recorded Flood Elevations and Estimated RIs without and with SLR
B30: Input Recorded Elevation(s) to see R.I.(s) | E30: R.I.s of Current Flood Elevations Considering SLR
B31: Recorded Flood Elevation (ft)* | C31: Estimated R.I. Without SLR (Year) | D31: Estimated Equivalent R.I. With SLR (Year) | E31: Flood Elevation Including Wave Height (ft) | F31: RI Without SLR (Year) | G31: Estimated Equivalent R.I. With SLR (Year)
C32: =IF(ISNUMBER(B32*$F$15),Calculations!D144,"") ->  | D32: =IF(COUNTBLANK($D$25:$D$28)=0,IF(ISNUMBER(B32), IF(Calculations!$I$12<0,C32,1/(1-1/(EXP(EXP( (Calculations!B144-(B32/Calculations!E144)) /Calculations!C144))))),""),"") ->  | E32: =IF(ISNUMBER(F15),F15,"") ->  | F32: =+B15 -> 10 | G32: =IF(ISNUMBER(D25), IF(Calculations!$I$12<0,F32,1/(1-1/(EXP(EXP( (Calculations!D137-(E32/Calculations!F137)) /Calculations!E137))))),"") -> 
C33: =IF(ISNUMBER(B33*$F$15),Calculations!D145,"") ->  | D33: =IF(COUNTBLANK($D$25:$D$28)=0,IF(ISNUMBER(B33), IF(Calculations!$I$12<0,C33,1/(1-1/(EXP(EXP( (Calculations!B145-(B33/Calculations!E145)) /Calculations!C145))))),""),"") ->  | E33: =IF(ISNUMBER(F16),F16,"") ->  | F33: =+B16 -> 50 | G33: =IF(ISNUMBER(D26), IF(Calculations!$I$12<0,F33,1/(1-1/(EXP(EXP( (Calculations!D138-(E33/Calculations!F138)) /Calculations!E138))))),"") -> 
C34: =IF(ISNUMBER(B34*$F$15),Calculations!D146,"") ->  | D34: =IF(COUNTBLANK($D$25:$D$28)=0,IF(ISNUMBER(B34), IF(Calculations!$I$12<0,C34,1/(1-1/(EXP(EXP( (Calculations!B146-(B34/Calculations!E146)) /Calculations!C146))))),""),"") ->  | E34: =IF(ISNUMBER(F17),F17,"") ->  | F34: =+B17 -> 100 | G34: =IF(ISNUMBER(D27), IF(Calculations!$I$12<0,F34,1/(1-1/(EXP(EXP( (Calculations!D139-(E34/Calculations!F139)) /Calculations!E139))))),"") -> 
C35: =IF(ISNUMBER(B35*$F$15),Calculations!D147,"") ->  | D35: =IF(COUNTBLANK($D$25:$D$28)=0,IF(ISNUMBER(B35), IF(Calculations!$I$12<0,C35,1/(1-1/(EXP(EXP( (Calculations!B147-(B35/Calculations!E147)) /Calculations!C147))))),""),"") ->  | E35: =IF(ISNUMBER(F18),F18,"") ->  | F35: =+B18 -> 500 | G35: =IF(ISNUMBER(D28), IF(Calculations!$I$12<0,F35,1/(1-1/(EXP(EXP( (Calculations!D140-(E35/Calculations!F140)) /Calculations!E140))))),"") -> 
C36: =IF(ISNUMBER(B36*$F$15),Calculations!D148,"") ->  | D36: =IF(COUNTBLANK($D$25:$D$28)=0,IF(ISNUMBER(B36), IF(Calculations!$I$12<0,C36,1/(1-1/(EXP(EXP( (Calculations!B148-(B36/Calculations!E148)) /Calculations!C148))))),""),"") -> 

Sheet Calculations (hidden)
A1: Station | B1: "M"* | D1: Year | E1: Low | F1: Int | H1: E | I1: Base | J1: M | K1: b
A2: This Option Not Used | B2: don't delete this | D2: =+$I$3 -> 1992 | E2: =IF(D2<>"",(($H$3/1000+$J$3/1000)*(D2-$I$3))*3.28083333333,"") -> 0 | F2: =IF(D2<>"",(($H$3/1000+$J$3/1000)*(D2-$I$3)+($K$4*(D2-$I$3)^2))*3.28083333333,"") -> 0 | H2: mm/yr | I2: Year | J2: mm/yr | K2: coefficients
A3: Nawiliwili, HI | B3: 1.5 | D3: =Calculations!$I$3-((Calculations!$I$3/5-INT(Calculations!$I$3/5))*5)+5 -> 1995 | E3: =IF(D3<>"",(($H$3/1000+$J$3/1000)*(D3-$I$3))*3.28083333333,"") -> 0.01476375 | F3: =IF(D3<>"",(($H$3/1000+$J$3/1000)*(D3-$I$3)+($K$4*(D3-$I$3)^2))*3.28083333333,"") -> 0.01556394525 | H3: 1.7 | I3: 1992 | J3: =INDEX(mm_yr,H8-1,1)-H3 -> -0.2 | K3: 0
A4: Honolulu, HI | B4: 1.52 | D4: =D3+5 -> 2000 | E4: 0.03937 | F4: 0.04506027733 | K4: 2.71e-05
A5: Mokuoloe, HI | B5: 1.67 | D5: 2005 | E5: 0.06397625 | F5: 0.07900213858 | K5: 0.000113
A6: Kahului, HI | B6: 2.21 | D6: 2010 | E6: 0.0885825 | F6: 0.117389529
A7: Hilo, HI | B7: 3.17 | D7: 2015 | E7: 0.11318875 | F7: 0.1602224486 | H7: dropdown
A8: Johnston Atoll | B8: 0.75 | D8: 2020 | E8: 0.137795 | F8: 0.2075008973 | H8: =MATCH('RI Estimator'!$C$23,stations,0) -> 1 | I8: =+INDEX(justStations,H8-1,1) -> Johnston Atoll
A9: Midway Atoll | B9: 0.7 | D9: 2025 | E9: 0.16240125 | F9: 0.2592248752
A10: Guam, Marianas Islands | B10: -1.05 | D10: 2030 | E10: 0.1870075 | F10: 0.3153943823 | H10: 2 | I10: Linear (Low)
A11: Pago Pago, American Samoa | B11: 2.07 | D11: 2035 | E11: 0.21161375 | F11: 0.3760094186 | H11: SLR= | I11: =+ROUND(Project_Useful__Life__Years*$I$12,2) -> 
A12: Kwajalein, Marshall Islands | B12: 1.43 | D12: 2040 | E12: 0.23622 | F12: 0.441069984 | H12: r (in ft) = | I12: =(H3+J3)/(25.4*12) -> 0.004921259843
A13: Chuuk, Caroline Islands | B13: 0.6 | D13: 2045 | E13: 0.26082625 | F13: 0.5105760786
A14: Wake Island | B14: 1.91 | D14: 2050 | E14: 0.2854325 | F14: 0.5845277023 | I14: This choice is fixed
A15: Bermuda | B15: 2.04 | D15: 2055 | E15: 0.31003875 | F15: 0.6629248552 | H15: Eqv. Year= | I15: =+ROUND((0.57*Project_Useful__Life__Years-1.18),0) -> 
A16: Eastport, ME | B16: 2.05 | D16: 2060 | E16: 0.334645 | F16: 0.7457675373 | H16: SLR by Eq Y= | I16: =+ROUND(I15*$I$12,2) -> 
A17: Bar Harbor, ME | B17: 2.45 | D17: 2065 | E17: 0.35925125 | F17: 0.8330557486 | H17: BFE rise= | I17: =ROUND('RI Estimator'!D27-'RI Estimator'!F17,2) -> 
A18: Portland, ME | B18: 1.86 | D18: 2070 | E18: 0.3838575 | F18: 0.924789489
A19: Seavey Island, ME | B19: 1.49 | D19: 2075 | E19: 0.40846375 | F19: 1.020968759
A20: Boston, MA | B20: 2.54 | D20: 2080 | E20: 0.43307 | F20: 1.121593557
A21: Woods Hole, MA | B21: 2.67 | D21: 2085 | E21: 0.45767625 | F21: 1.226663885
A22: Nantucket Island, MA | B22: 2.86 | D22: 2090 | E22: 0.4822825 | F22: 1.336179742
A23: Newport, RI | B23: 2.58 | D23: 2095 | E23: 0.50688875 | F23: 1.450141129
A24: Providence, RI | B24: 2 | D24: 2100 | E24: 0.531495 | F24: 1.568548044
A25: New London, CT | B25: 2.37 | D25: 2105 | E25: 0.55610125 | F25: 1.691400489
A26: Bridgeport, CT | B26: 2.46 | D26: 2110 | E26: 0.5807075 | F26: 1.818698462
A27: Montauk, NY | B27: 2.93 | D27: 2115 | E27: 0.60531375 | F27: 1.950441965
A28: Port Jefferson, NY | B28: 2.44 | D28: 2120 | E28: 0.62992 | F28: 2.086630997
A29: Kings Point, NY | B29: 2.37 | D29: 2125 | E29: 0.65452625 | F29: 2.227265559
A30: The Battery, NY | B30: 2.92 | D30: 2130 | E30: 0.6791325 | F30: 2.372345649
A31: Sandy Hook, NJ | B31: 3.97 | D31: 2135 | E31: 0.70373875 | F31: 2.521871269
A32: Atlantic City, NJ | B32: 3.87 | D32: 2140 | E32: 0.728345 | F32: 2.675842417
A33: Cape May, NJ | B33: 3.8 | D33: 2145 | E33: 0.75295125 | F33: 2.834259095
A34: Philadelphia, PA | B34: 2.76 | D34: 2150 | E34: 0.7775575 | F34: 2.997121302
A35: Reedy Point, DE | B35: 3.41 | D35: 2155 | E35: 0.80216375 | F35: 3.164429039
A36: Lewes, DE | B36: 3.36 | D36: 2160 | E36: 0.82677 | F36: 3.336182304
A37: Ocean City, MD | B37: 4.43 | D37: 2165 | E37: 0.85137625 | F37: 3.512381099
A38: Cambridge, MD | B38: 3.6
A39: Chesapeake City, MD | B39: 3.03
A40: Baltimore, MD | B40: 3.03
A41: Annapolis, MD | B41: 3.32
A42: Solomons Island, MD | B42: 3.53
A43: Washington, DC | B43: 3.04
A44: Kiptopeke, VA | B44: 3.6
A45: Colonial Beach, VA | B45: 4.77
A46: Lewisetta, VA | B46: 4.12
A47: Gloucester Point, VA | B47: 4.12
A48: Sewells Point, VA | B48: 4.31
A49: Portsmouth, VA | B49: 3.76
A50: Chesapeake Bay Bridge Tunnel, VA | B50: 5.04
A51: Oregon Inlet Marina, NC | B51: 2.34
A52: Beaufort, NC | B52: 2.49
A53: Wilmington, NC | B53: 2.13
A54: Southport, NC | B54: 2.22
A55: Springmaid Pier, SC | B55: 4.04
A56: Charleston, SC | B56: 2.94
A57: Fort Pulaski, GA | B57: 3.06
A58: Fernandina Beach, FL | B58: 2.3
A59: Mayport, FL | B59: 2.29
A60: Daytona Beach Shores, FL | B60: 2.32
A61: Miami Beach, FL | B61: 2.39
A62: Vaca Key, FL | B62: 2.9
A63: Key West, FL | B63: 2.2
A64: Naples, FL | B64: 1.97
A65: Fort Myers, FL | B65: 2.32
A66: St. Petersburg, FL | B66: 2.62
A67: Clearwater Beach, FL | B67: 2.56
A68: Cedar Key, FL | B68: 1.81
A69: Apalachicola, FL | B69: 1.46
A70: Panama City, FL | B70: 1.1
A71: Pensacola, FL | B71: 2.03
A72: Dauphin Island, AL | B72: 2.92
A73: Grand Isle, LA | B73: 9.3
A74: Eugene Island, LA | B74: 9.65
A75: Sabine Pass, TX | B75: 5.55
A76: Galveston Pier 21, TX | B76: 6.42
A77: Galveston Pleasure Pier, TX | B77: 6.64
A78: Freeport, TX | B78: 5.35
A79: Rockport, TX | B79: 5.35
A80: Port Mansfield, TX | B80: 1.93
A81: Padre Island, TX | B81: 3.48
A82: Port Isabel, TX | B82: 3.86
A83: San Diego, CA | B83: 2.07
A84: La Jolla, CA | B84: 2.07
A85: Newport Beach, CA | B85: 2.22
A86: Los Angeles, CA | B86: 0.79
A87: Santa Monica, CA | B87: 1.42
A88: Rincon Island, CA | B88: 3.22
A89: Santa Barbara, CA | B89: -0.32
A90: Port San Luis, CA | B90: 0.77
A91: Monterey, CA | B91: 1.37
A92: San Francisco, CA | B92: 2.06
A93: Redwood City, CA | B93: 1.6
A94: Alameda, CA | B94: 0.92
A95: Point Reyes, CA | B95: 2.21
A96: Port Chicago, CA | B96: 2.79
A97: North Spit, CA | B97: 5.13
A98: Crescent City, CA | B98: -0.68
A99: Port Orford, OR | B99: 0.3
A100: Charleston, OR | B100: 1.13
A101: South Beach, OR | B101: 2.82
A102: Garibaldi, OR | B102: 1.69
A103: Astoria, OR | B103: -0.4
A104: Toke Point, WA | B104: 1.48
A105: Neah Bay, WA | B105: -1.64
A106: Port Angeles, WA | B106: 0.13
A107: Port Townsend, WA | B107: 1.94
A108: Seattle, WA | B108: 2.24
A109: Cherry Point, WA | B109: 0.53
A110: Friday Harbor, WA | B110: 1.12
A111: Ketchikan, AK | B111: -0.18
A112: Sitka, AK | B112: -2.01
A113: Juneau, AK | B113: -12.92
A114: Skagway, AK | B114: -17.26
A115: Yakutat, AK | B115: -10.61
A116: Cordova, AK | B116: 5.15
A117: Valdez, AK | B117: -2.18
A118: Seward, AK | B118: -2.12
A119: Seldovia, AK | B119: -9.72
A120: Nikiski, AK | B120: -10.13
A121: Anchorage, AK | B121: 0.3
A122: Kodiak Island, AK | B122: -9.89
A123: Sand Point, AK | B123: 1.12
A124: Adak Island, AK | B124: -2.63
A125: Unalaska, AK | B125: -5.55
A126: Guantanamo Bay, Cuba | B126: 1.64
A127: Lime Tree Bay, Virgin Islands | B127: 1.85
A128: Charlotte Amalie, Virgin Islands | B128: 1.18
A129: San Juan, Puerto Rico | B129: 1.68
A130: Magueyes Island, Puerto Rico | B130: 1.21
A134: Piecewise cumulative fit to Gumbel Distribution
A135: This approach used because the purpose of tool is to produce accuaret Tr for a range of known elevations and not overall SLR design elevation change
A136: Tr (Year) | B136: Flood Elev(including waveheight)(ft) | C136: Tr of El used for this range | D136: Loc | E136: Scale | F136: (1+r*ROUND((0.57*Project_Useful__Life__Years-1.18),0)/Location)= | G136: P | H136: Gumbel fit by equation | I136: flood elev (ft) | J136: Theor. Flood El.
A137: =+'RI Estimator'!B15 -> 10 | B137: =+'RI Estimator'!F15 ->  | C137: 10,50 | D137: =B137+LN(LN((10/9)))*E137 ->  | E137: =+(B138-B137)/(LN(LN(10/9))-LN(LN((50/49)))) ->  | F137: =+(1+Calculations!$I$12*ROUND((0.57*Project_Useful__Life__Years-1.18),0)/D137) ->  | G137: =1/A137 -> 0.1 | H137: =1-EXP(-EXP(-(B137-D137)/E137)) ->  | I137: =+B137 ->  | J137: =D137-E137*(LN(LN((1/G137)/((1/G137)-1)))) -> 
A138: =+'RI Estimator'!B16 -> 50 | B138: =+'RI Estimator'!F16 ->  | C138: 10100 | D138: =B138+LN(LN((50/49)))*E138 ->  | E138: =+(B139-B137)/(LN(LN(10/9))-LN(LN((100/99)))) ->  | F138: =+(1+Calculations!$I$12*ROUND((0.57*Project_Useful__Life__Years-1.18),0)/D138) ->  | G138: =1/A138 -> 0.02 | H138: =1-EXP(-EXP(-(B138-D138)/E138)) ->  | I138: =+B138 ->  | J138: =D138-E138*(LN(LN((1/G138)/((1/G138)-1)))) -> 
A139: =+'RI Estimator'!B17 -> 100 | B139: =+'RI Estimator'!F17 ->  | C139: 10500 | D139: =B139+LN(LN((100/99)))*E139 ->  | E139: =+(B140-B137)/(LN(LN(10/9))-LN(LN((500/499)))) ->  | F139: =+(1+Calculations!$I$12*ROUND((0.57*Project_Useful__Life__Years-1.18),0)/D139) ->  | G139: =1/A139 -> 0.01 | H139: =1-EXP(-EXP(-(B139-D139)/E139)) ->  | I139: =+B139 ->  | J139: =D139-E139*(LN(LN((1/G139)/((1/G139)-1)))) -> 
A140: =+'RI Estimator'!B18 -> 500 | B140: =+'RI Estimator'!F18 ->  | C140: 10500 | D140: =B140+LN(LN((500/499)))*E140 ->  | E140: =+E139 ->  | F140: =+(1+Calculations!$I$12*ROUND((0.57*Project_Useful__Life__Years-1.18),0)/D140) ->  | G140: =1/A140 -> 0.002 | H140: =1-EXP(-EXP(-(B140-D140)/E140)) ->  | I140: =+B140 ->  | J140: =D140-E140*(LN(LN((1/G140)/((1/G140)-1)))) -> 
A142: Estimation of Tr for recorded Flood Elevations
A143: Recorded Flood Elevation (ft) | B143: Loc | C143: Scale | D143: Estimated R.I. without SLR (Year) | E143: (1+r*ROUND((0.57*Project_Useful__Life__Years-1.18),0)/Location)=
A144: =+'RI Estimator'!B32 -> 0 | B144: =IF(A144<=$B$137,$D$137,VLOOKUP($A144,$B$137:$E$140,3)) ->  | C144: =IF(A144<=$B$137,$E$137,VLOOKUP($A144,$B$137:$E$140,4)) ->  | D144: =IF(ISNUMBER('RI Estimator'!B32),1/(1-EXP(-EXP(-(A144-B144)/C144))),"") ->  | E144: =+(1+Calculations!$I$12*ROUND((0.57*Project_Useful__Life__Years-1.18),0)/B144) -> 
A145: =+'RI Estimator'!B33 -> 0 | B145: =IF(A145<=$B$137,$D$137,VLOOKUP($A145,$B$137:$E$140,3)) ->  | C145: =IF(A145<=$B$137,$E$137,VLOOKUP($A145,$B$137:$E$140,4)) ->  | D145: =IF(ISNUMBER('RI Estimator'!B33),1/(1-EXP(-EXP(-(A145-B145)/C145))),"") ->  | E145: =+(1+Calculations!$I$12*ROUND((0.57*Project_Useful__Life__Years-1.18),0)/B145) -> 
A146: =+'RI Estimator'!B34 -> 0 | B146: =IF(A146<=$B$137,$D$137,VLOOKUP($A146,$B$137:$E$140,3)) ->  | C146: =IF(A146<=$B$137,$E$137,VLOOKUP($A146,$B$137:$E$140,4)) ->  | D146: =IF(ISNUMBER('RI Estimator'!B34),1/(1-EXP(-EXP(-(A146-B146)/C146))),"") ->  | E146: =+(1+Calculations!$I$12*ROUND((0.57*Project_Useful__Life__Years-1.18),0)/B146) -> 
A147: =+'RI Estimator'!B35 -> 0 | B147: =IF(A147<=$B$137,$D$137,VLOOKUP($A147,$B$137:$E$140,3)) ->  | C147: =IF(A147<=$B$137,$E$137,VLOOKUP($A147,$B$137:$E$140,4)) ->  | D147: =IF(ISNUMBER('RI Estimator'!B35),1/(1-EXP(-EXP(-(A147-B147)/C147))),"") ->  | E147: =+(1+Calculations!$I$12*ROUND((0.57*Project_Useful__Life__Years-1.18),0)/B147) -> 
A148: =+'RI Estimator'!B36 -> 0 | B148: =IF(A148<=$B$137,$D$137,VLOOKUP($A148,$B$137:$E$140,3)) ->  | C148: =IF(A148<=$B$137,$E$137,VLOOKUP($A148,$B$137:$E$140,4)) ->  | D148: =IF(ISNUMBER('RI Estimator'!B36),1/(1-EXP(-EXP(-(A148-B148)/C148))),"") ->  | E148: =+(1+Calculations!$I$12*ROUND((0.57*Project_Useful__Life__Years-1.18),0)/B148) -> 
A150: Solving 2 eq 2 unknows (ex: 10-yr annd 50-yr)
A151: El10= loc-ln(ln(10/9))scale --> Loc= El10+ln(ln(10/9))scale
A152: El50= loc-ln(ln(50/49))scale--> Loc= El50+ln(ln(50/49))scale
A153: setting Loc from above 2 equation equal and solving for scale:
A154: Scale= (El50-El10)/ (ln(ln(10/9))-ln(ln(50/49))
A155: and then:
A156: Loc= Wl10+ln(ln(10/9)) * sclae … where scale is already known from above
A157: So pairs of equations were solved in cumulative fashion
